Cogmind - Beta 15 @@@ ROGUE MODE // 2025.10.17 @ 19:54:18 Player: Dadrick Result: Establishing Free Derelict Territories! Performance ------------- Evolutions (9) 4500 Regions Visited (38) 7600 Robots Destroyed (310) 1550 Value Destroyed (9243) 9243 Prototype IDs (79) 1580 Alien Tech Used (2) 400 Bonus (34170) 34170 TOTAL SCORE: 59043 Bonus ------- High Alert Combat Kills 239 Follower Combat Kills 1987 Network Hubs Disabled 800 Met Data Miner 300 Met Imprinter 300 Met Warlord at Base 500 MAIN.C Attacked Warlord 500 Warlord Defense Kills 1144 Built Enhanced Grunts 300 A7 Reached Mainframe 300 Met Warlord at Research 2000 Destroyed MAIN.C Guards 500 Met MAIN.C 5000 Hacked MAIN.C 300 Destroyed MAIN.C Shell 5000 Destroyed MAIN.C 10000 Met Warlord at Command 2000 Win 3000 Cogmind --------- Core Integrity 1374/1600 Matter 300/300 Energy 173/800 System Corruption 6% Temperature Cool (0) Movement Flying (20) Location Free Derelict Territories Parts ------- > --- POWER (2) -------- Micro Antimatter Reactor Micro Antimatter Reactor > --- PROPULSION (8) --- Improved Diametric Drive Improved Diametric Drive Cooled Impulse Thruster (fused) Impulse Thruster Array Impulse Thruster Array Cooled Q-thruster > --- UTILITY (12) ----- 2N-1CE's Frost Array Medium Storage Unit Experimental Energy Well Advanced Melee Analysis Suite Advanced Melee Analysis Suite Femtoactuators Advanced Reaction Control System Graphene Brace Improved Remote Shield System Mapper Advanced System Shield > --- WEAPON (4) ------- Advanced Datajack Sigix Broadsword > --- INVENTORY (10) --- Micro Antimatter Reactor Q-thruster Improved Power Shielding Graphene Brace Compact HERF Cannon Enhanced Nova Cannon Mini Smartbomb Launcher Advanced Datajack Force Lance Peak State ------------ > --- POWER ------------ Micro Antimatter Reactor Micro Antimatter Reactor > --- PROPULSION ------- Improved Diametric Drive Improved Diametric Drive Cooled Impulse Thruster Impulse Thruster Array Impulse Thruster Array Cooled Q-thruster > --- UTILITY ---------- 2N-1CE's Frost Array Large Storage Unit Experimental Signal Interpreter Advanced Reaction Control System Experimental Propulsion Shielding Experimental Utility Shielding Graphene Brace Makeshift Hacking Suite Advanced Hacking Suite Experimental Hacking Suite System Mapper Advanced System Shield > --- WEAPON ----------- Advanced Datajack Sigix Broadsword Force Lance > --- INVENTORY -------- Micro Antimatter Reactor Q-thruster Medium Storage Unit Experimental Energy Well Long-range Sensor Array Advanced Melee Analysis Suite Advanced Melee Analysis Suite Femtoactuators Improved Power Shielding Graphene Brace Authchip [Armor] Compact HERF Cannon Enhanced Nova Cannon Mini Smartbomb Launcher Advanced Datajack [Rating: 214] Favorites ----------- Power Neutrino Core Engine Improved Ion Engine Power Core Neutrino Core Reactor Micro Antimatter Reactor Propulsion Cooled Cesium-ion Thruster Treads Light Treads Leg Aluminum Leg Wheel Wheel Hover Unit Gravmag System Flight Unit Cooled Cesium-ion Thruster Utility Improved Hacking Suite Device Advanced Sensor Array Storage Medium Storage Unit Processor Advanced Signal Interpreter Hackware Improved Hacking Suite Protection Experimental Utility Shielding Weapon Phasing Sabre Energy Gun Medium Laser Energy Cannon Matter Neutralizer Ballistic Gun Heavy Assault Rifle Ballistic Cannon Advanced Assault Cannon Launcher Mini Smartbomb Launcher Special Weapon Remote Datajack Impact Weapon Impact Mace Slashing Weapon Phasing Sabre Piercing Weapon CR-A16's Pointy Stick Special Melee Weapon Advanced Datajack Build | -11 -10 -9 -9 -8 -7 -7 -7 -7 -7 -7 -6 -6 -6 -6 -6 -6 -6 -5 -5 -5 -5 -5 -5 -5 -5 -4 -4 -4 -4 -4 -4 -3 -3 -3 -2 -2 -1 -1 ------- Run | Yrd Mat Mat Min Mat Fac Was Fac Low Low Dat Pro Fac Was Fac Low Low Zio Pro Fac Was Fac Ext Cet Arc Hub Fac Was Fac Upp Upp War Pro Res Qua Res Tes Acc Com Slots Evolved 18 | . . 2 . 2 2 . . . . . . 2 . . . . . . 2 . . . . . . 2 . . . . . . 2 . 2 . 2 . Power 1 | . . . . . . . . . . . . . . . . . . . . . . . . . . . . . . . . . 1 . . . . . Propulsion 6 | . . 1 . . 1 . . . . . . 1 . . . . . . 1 . . . . . . 1 . . . . . . . . 1 . . . Utility 10 | . . . . 2 1 . . . . . . 1 . . . . . . 1 . . . . . . 1 . . . . . . 1 . 1 . 2 . Weapon 1 | . . 1 . . . . . . . . . . . . . . . . . . . . . . . . . . . . . . . . . . . . Parts Attached 245 | 8 12 19 . 27 6 . 1 . 1 . 3 15 . 27 1 . . . 18 . 5 13 1 . 2 15 . 14 1 1 9 . 13 10 5 2 7 9 Power 28 | 1 2 2 . 3 . . . . . . 1 . . 2 . . . . 1 . 1 3 . . . 1 . 4 1 . 1 . 1 2 . . 2 . Engine 7 | 1 2 2 . 2 . . . . . . . . . . . . . . . . . . . . . . . . . . . . . . . . . . Core 13 | . . . . 1 . . . . . . 1 . . 2 . . . . 1 . 1 3 . . . 1 . 2 . . 1 . . . . . . . Reactor 8 | . . . . . . . . . . . . . . . . . . . . . . . . . . . . 2 1 . . . 1 2 . . 2 . Propulsion 75 | 2 3 6 . 12 1 . . . . . . 7 . 13 . . . . 5 . 2 2 . . 1 7 . 5 . . 2 . 4 1 2 . . . Treads 6 | 2 . . . 3 . . . . . . . . . 1 . . . . . . . . . . . . . . . . . . . . . . . . Leg 16 | . 3 5 . 5 . . . . . . . . . 3 . . . . . . . . . . . . . . . . . . . . . . . . Wheel 1 | . . . . . . . . . . . . . . . . . . . . . . . . . . . . . . . . . 1 . . . . . Hover 2 | . . . . . . . . . . . . . . 2 . . . . . . . . . . . . . . . . . . . . . . . . Flight 50 | . . 1 . 4 1 . . . . . . 7 . 7 . . . . 5 . 2 2 . . 1 7 . 5 . . 2 . 3 1 2 . . . Utility 86 | 2 2 3 . 5 4 . 1 . 1 . 1 6 . 7 1 . . . 9 . 2 3 1 . . 6 . 3 . 1 4 . 8 4 1 1 2 8 Device 23 | 1 . . . 1 1 . . . . . . 3 . 3 . . . . 1 . 1 2 . . . . . 1 . . 1 . 1 2 . 1 1 3 Storage 8 | 1 1 . . . . . . . . . . 1 . 1 . . . . . . . . . . . . . 1 . . 1 . 1 1 . . . . Processor 7 | . . . . . 1 . . . . . . 1 . 1 . . . . . . . . . . . . . . . . . . 1 . 1 . . 2 Hackware 27 | . . . . 1 1 . . . 1 . 1 . . 1 1 . . . 8 . 1 . . . . 4 . 1 . 1 1 . 5 . . . . . Protection 21 | . 1 3 . 3 1 . 1 . . . . 1 . 1 . . . . . . . 1 1 . . 2 . . . . 1 . . 1 . . 1 3 Artifact . | . . . . . . . . . . . . . . . . . . . . . . . . . . . . . . . . . . . . . . . Weapon 56 | 3 5 8 . 7 1 . . . . . 1 2 . 5 . . . . 3 . . 5 . . 1 1 . 2 . . 2 . . 3 2 1 3 1 Energy Gun 4 | 1 . . . . . . . . . . . . . . . . . . . . . . . . . . . . . . 1 . . 1 . 1 . . Energy Cannon 4 | . . . . . . . . . . . . . . . . . . . . . . . . . . . . 1 . . 1 . . 1 . . 1 . Ballistic Gun 19 | 2 3 7 . 6 . . . . . . . 1 . . . . . . . . . . . . . . . . . . . . . . . . . . Ballistic Cannon 2 | . . . . . . . . . . . . 1 . 1 . . . . . . . . . . . . . . . . . . . . . . . . Launcher 4 | . 1 . . 1 . . . . . . 1 . . . . . . . 1 . . . . . . . . . . . . . . . . . . . Special Weapon 6 | . 1 . . . . . . . . . . . . 2 . . . . . . . 1 . . 1 1 . . . . . . . . . . . . Impact Weapon 2 | . . . . . . . . . . . . . . 1 . . . . 1 . . . . . . . . . . . . . . . . . . . Slashing Weapon 10 | . . 1 . . 1 . . . . . . . . 1 . . . . 1 . . 3 . . . . . 1 . . . . . 1 1 . . . Piercing Weapon 2 | . . . . . . . . . . . . . . . . . . . . . . 1 . . . . . . . . . . . . . . 1 . Special Melee Weapon 3 | . . . . . . . . . . . . . . . . . . . . . . . . . . . . . . . . . . . 1 . 1 1 Unidentified Prototypes 17 | . . 1 . 1 . . . . 1 . . 1 . 1 . . . . . . . . . . . . . . . . 5 . . 2 2 2 . 1 Parts Lost 68 | . 3 3 . 5 1 . . . . . 1 1 . 12 . . . . . . 1 7 . . . 5 . 9 1 . 3 . 10 . 1 1 . 4 Power 9 | . 1 . . . . . . . . . . . . 1 . . . . . . . 2 . . . . . 3 1 . . . 1 . . . . . Propulsion 21 | . 1 1 . . . . . . . . . . . 5 . . . . . . 1 2 . . . 3 . 2 . . 1 . 4 . 1 . . . Utility 23 | . . 2 . 2 . . . . . . 1 1 . 4 . . . . . . . 1 . . . 2 . 1 . . 2 . 3 . . . . 4 Weapon 15 | . 1 . . 3 1 . . . . . . . . 2 . . . . . . . 2 . . . . . 3 . . . . 2 . . 1 . . Highest Loss Streak 4 | . 1 1 . 2 1 . . . . . 1 1 . 4 . . . . . . 1 3 . . . 2 . 3 1 . 3 . 3 . 1 1 . 2 To Critical Strikes . | . . . . . . . . . . . . . . . . . . . . . . . . . . . . . . . . . . . . . . . Average Backups 10 | . 9 19 18 18 5 5 5 5 5 5 4 4 9 7 9 10 10 9 9 10 9 9 10 10 9 9 9 9 9 9 9 9 9 10 13 15 15 11 Power 1 | . 1 1 1 1 . 1 1 1 1 1 1 1 1 . 1 1 1 1 1 1 1 . 1 1 1 1 2 1 . . 1 1 1 1 1 1 1 1 Propulsion 1 | . . 6 6 7 1 1 1 1 1 1 1 . . . 1 1 1 1 . 1 . . 1 1 1 1 1 1 . . . . . 1 1 2 1 1 Utility 5 | . 3 7 6 5 2 2 2 2 2 2 2 2 4 3 6 6 5 5 4 5 6 5 6 6 5 4 4 4 7 8 7 7 7 6 7 9 9 5 Weapon 2 | . 3 4 4 3 1 1 1 1 1 1 . 1 3 1 1 2 2 2 3 3 2 1 1 1 . . 1 . 1 1 1 1 . 1 2 2 3 3 Tool/Special . | . . . . . . . . . . . . . . . . . . . . . . . . . . . . . . . . . . . . . . . Unused Backups 37 | . . 7 . 10 3 . . . . . . 3 1 2 . . 1 . . . 2 . . . . 1 . . . . 1 . 1 . . 1 . 4 Power 8 | . . 1 . 1 . . . . . . . 1 . 1 . . . . . . 1 . . . . . . . . . . . 1 . . 1 . 1 Propulsion 11 | . . 1 . 7 1 . . . . . . . . 1 . . . . . . . . . . . . . . . . . . . . . . . 1 Utility 14 | . . 4 . 1 1 . . . . . . 1 1 . . . 1 . . . 1 . . . . 1 . . . . 1 . . . . . . 2 Weapon 3 | . . 1 . 1 1 . . . . . . . . . . . . . . . . . . . . . . . . . . . . . . . . . Tool/Special 1 | . . . . . . . . . . . . 1 . . . . . . . . . . . . . . . . . . . . . . . . . . Average Slot Usage (%) 90 | . 96 99 100 92 93 92 92 92 91 85 84 89 87 83 93 93 93 93 92 88 88 88 94 94 94 90 90 85 83 85 87 95 80 80 79 86 83 86 Engine 2 | . 11 11 11 8 . . . . . . . . . . . . . . . . . . . . . . . . . . . . . . . . . . Core 3 | . . . . . 7 7 7 7 7 7 7 6 6 5 6 6 6 6 5 5 5 4 5 5 5 5 5 2 . . 4 5 1 . . . . . Treads 1 | . 8 . . 8 . . . . . . . . . . . . . . . . . . . . . . . . . . . . . . . . . . Leg 5 | . 18 32 33 12 . . . . . . . . . . . . . . . . . . . . . . . . . . . . . . . . . . Flight 20 | . . . . . 30 30 30 30 29 28 28 30 31 24 31 31 31 31 32 27 27 26 27 27 27 27 25 24 25 25 27 30 23 22 23 25 23 23 Device 6 | . 4 . . 8 7 7 7 7 7 7 7 10 12 9 12 12 12 12 11 5 5 3 4 5 5 8 10 9 10 10 5 5 6 5 4 8 7 12 Storage 5 | . 14 11 11 9 . . . . . . . . 6 3 6 6 6 6 5 5 5 5 5 5 5 5 5 5 5 5 5 5 4 4 4 4 3 5 Processor 4 | . . . . . 6 7 7 7 7 7 7 6 6 7 6 6 6 6 5 5 5 5 5 5 5 5 5 5 5 5 5 5 4 4 4 4 3 5 Hackware 13 | . . . . 8 14 15 15 15 14 14 12 11 6 9 12 12 12 12 13 22 22 22 22 22 18 16 20 18 20 20 18 20 18 22 20 20 19 12 Protection 5 | . 9 11 11 8 7 7 7 7 6 7 7 6 6 4 . . . . . . . 1 . . 2 4 . 2 . . 2 5 5 2 4 4 5 8 Ballistic Gun 7 | . 21 32 32 25 4 . . . . . . 2 . . . . . . . . . . . . . . . . . . . . . . . . . . Special Weapon 1 | . . . . . . . . . . . . . . . 6 6 6 6 1 5 5 2 5 5 1 3 5 1 . . . . . . . . . . Slashing Weapon 7 | . . . . . 9 15 15 15 14 14 14 11 12 8 6 6 6 6 9 11 10 11 11 11 11 9 10 6 10 10 10 10 6 7 8 7 3 2 Piercing Weapon 1 | . . . . . . . . . . . . . . . . . . . . . . 1 5 5 4 5 5 5 5 5 5 5 3 . . . . 2 Peak Build Rating 214 | 7 9 18 18 39 43 43 45 45 46 46 48 74 72 72 75 75 71 75 98 98 100 102 102 101 107 116 111 118 98 103 123 122 140 173 193 200 213 214 Average Rating 77 | 5 7 16 17 33 40 43 43 45 45 46 46 65 71 61 69 70 70 71 85 98 97 99 101 101 103 107 111 108 95 97 111 122 116 157 174 194 204 208 On Entrance 82 | . 7 9 18 18 33 43 43 45 45 46 46 48 71 72 69 70 70 71 71 98 98 98 101 101 101 105 111 111 97 97 99 122 122 112 167 193 189 212 Naked Turns . | . . . . . . . . . . . . . . . . . . . . . . . . . . . . . . . . . . . . . . . Heaviest Build 71 | 12 49 63 63 68 18 18 18 17 17 17 17 28 28 30 29 29 29 29 34 29 30 38 38 38 40 47 40 43 39 39 44 41 49 53 56 53 59 71 Greatest Support 64 | 40 40 30 30 64 20 20 20 20 20 20 20 30 30 45 30 30 30 30 42 42 45 48 42 42 42 59 51 57 43 43 50 50 53 53 59 59 60 60 Greatest Overweight (x) 3 | . 2 3 2 3 . . . . . . . . . 2 . . . . . . . 1 . . 1 . . . . . . . . . . . . 1 Average Overweight (x) . | . . 1 2 . . . . . . . . . . . . . . . . . . . . . . . . . . . . . . . . . . . Largest Inventory Capacity 20 | 8 20 20 20 20 20 5 5 5 5 5 5 10 10 10 10 10 10 10 10 10 10 10 10 10 10 10 10 10 10 10 10 10 10 15 15 15 15 15 Average Capacity 11 | 7 13 20 20 20 5 5 5 5 5 5 5 5 10 8 10 10 10 10 10 10 10 10 10 10 10 10 10 10 10 10 10 10 10 12 15 15 15 12 Most Carried 20 | 2 17 20 19 20 15 5 5 5 5 5 5 9 10 10 10 10 10 10 10 10 10 10 10 10 10 10 9 10 10 10 10 9 10 12 15 15 15 15 Average Carried 10 | . 9 19 18 18 5 5 5 5 5 5 4 4 9 7 9 9 9 9 9 10 9 9 10 10 9 9 9 9 9 9 9 9 9 10 13 14 14 11 Final Capacity 20 | 8 20 20 20 20 5 5 5 5 5 5 5 10 10 10 10 10 10 10 10 10 10 10 10 10 10 10 10 10 10 10 10 10 10 15 15 15 15 10 Final Carried 19 | 2 17 19 18 16 5 5 5 5 5 5 5 9 10 10 10 10 10 10 10 10 10 10 10 10 10 9 9 9 9 10 9 9 10 12 15 15 15 9 Class Distribution -------------------- 49% | Hacker-Sprinter 14% | Tank 10% | Commander-Sprinter 7% | Wizard-Sprinter 4% | Mutant 4% | Scavenger-Tank 3% | Scavenger-Mutant Dominant Class ---------------- Mutant | -10/Materials Tank | -9/Materials Tank | -9/Mines Tank | -8/Materials Hacker-Sprinter | -7/Factory Hacker-Sprinter | -7/Waste Hacker-Sprinter | -7/Factory Hacker-Sprinter | -7/Lower Caves Hacker-Sprinter | -7/Lower Caves Hacker-Sprinter | -7/Data Miner Hacker-Sprinter | -6/Proximity Caves Hacker-Sprinter | -6/Factory Sprinter | -6/Waste Hacker-Sprinter | -6/Factory Hacker-Sprinter | -6/Lower Caves Hacker-Sprinter | -6/Lower Caves Hacker-Sprinter | -6/Zion Hacker-Sprinter | -5/Proximity Caves Hacker-Sprinter | -5/Factory Hacker-Sprinter | -5/Waste Hacker-Sprinter | -5/Factory Hacker-Sprinter | -5/Extension Commander-Sprinter | -5/Cetus Commander-Sprinter | -5/Archives Commander-Sprinter | -5/Hub_04(d) Hacker-Sprinter | -4/Factory Hacker-Sprinter | -4/Waste Hacker-Sprinter | -4/Factory Hacker-Sprinter | -4/Upper Caves Hacker-Sprinter | -4/Upper Caves Hacker-Sprinter | -4/Warlord Hacker-Sprinter | -3/Proximity Caves Hacker-Sprinter | -3/Research Wizard-Sprinter | -3/Quarantine Wizard-Sprinter | -2/Research Wizard-Sprinter | -2/Testing Wizard-Sprinter | -1/Access Hacker-Sprinter | -1/Command Resources | -11 -10 -9 -9 -8 -7 -7 -7 -7 -7 -7 -6 -6 -6 -6 -6 -6 -6 -5 -5 -5 -5 -5 -5 -5 -5 -4 -4 -4 -4 -4 -4 -3 -3 -3 -2 -2 -1 -1 ----------- Run | Yrd Mat Mat Min Mat Fac Was Fac Low Low Dat Pro Fac Was Fac Low Low Zio Pro Fac Was Fac Ext Cet Arc Hub Fac Was Fac Upp Upp War Pro Res Qua Res Tes Acc Com Matter Collected 9440 | 288 179 1213 47 1462 236 . 66 3 10 . 130 353 . 693 35 65 32 42 40 . 407 1195 55 . 110 347 . 614 115 42 113 69 629 315 70 . 85 380 Remotely 295 | . . . . 295 . . . . . . . . . . . . . . . . . . . . . . . . . . . . . . . . . . Salvage Created 11438 | 86 434 1502 84 2001 612 . 73 . . . 52 789 . 1464 . . . . 206 . 428 589 37 . 68 268 . 631 24 83 332 89 778 304 47 . 176 281 Parts 634 | 6 30 107 15 95 45 . 2 . . . 7 39 . 56 . . . . 7 . 35 32 1 . 2 22 . 44 1 1 15 8 41 8 3 . 7 5 Haulers Intercepted 23 | . . 5 . 2 3 . 1 . . . . 4 . 3 . . . . 1 . 1 . . . . . . 1 . . . . 1 . . . 1 . Recyclers Shooed 7 | . . . . 2 . . . . . . . 1 . 1 . . . . . . 1 . . . . . . 2 . . . . . . . . . . Parts Field Recycled . | . . . . . . . . . . . . . . . . . . . . . . . . . . . . . . . . . . . . . . . Retrieved Matter . | . . . . . . . . . . . . . . . . . . . . . . . . . . . . . . . . . . . . . . . Parts Self-Destructed 22 | . . . . . . . . . 7 . 4 . . . . . . . . . . . . . . . . . 4 1 . 6 . . . . . . Prevented 7 | . . . . . . . . . 4 . . . . . . . . . . . . . . . . . . . . . . 3 . . . . . . Kills | -11 -10 -9 -9 -8 -7 -7 -7 -7 -7 -7 -6 -6 -6 -6 -6 -6 -6 -5 -5 -5 -5 -5 -5 -5 -5 -4 -4 -4 -4 -4 -4 -3 -3 -3 -2 -2 -1 -1 ------- Run | Yrd Mat Mat Min Mat Fac Was Fac Low Low Dat Pro Fac Was Fac Low Low Zio Pro Fac Was Fac Ext Cet Arc Hub Fac Was Fac Upp Upp War Pro Res Qua Res Tes Acc Com Combat Hostiles Destroyed 176 | . 10 32 10 27 2 . . . . . 4 5 . 19 . . . . . . 9 10 . . . 8 . 14 . . 9 6 5 . . . . 6 Melee 22 | . . . . . 2 . . . . . 2 2 . 7 . . . . . . . 1 . . . 2 . . . . . 2 2 . . . . 2 Guns 65 | . 9 25 4 27 . . . . . . . . . . . . . . . . . . . . . . . . . . . . . . . . . . Cannons 1 | . . . . . . . . . . . . . . . . . . . . . . . . . . . . . . . . . . . . . . 1 AOE 86 | . 1 7 6 . . . . . . . 2 3 . 10 . . . . . . 9 9 . . . 6 . 14 . . 9 4 3 . . . . 3 Classes Destroyed 19 | 2 6 4 . 1 1 . . . . . . . . . . . . . . . . 1 . . . 1 . . 1 . 2 . . . . . . . Worker 18 | . . . . 3 3 . . . . . . . . 2 . . . . . . 3 . . . . . . . . . . . 5 2 . . . . Builder 23 | . 1 1 . 2 3 . . . . . . 5 . 1 . . . . . . . 5 . . . 2 . 3 . . . . . . . . . . Tunneler 8 | 1 . . . 2 . . . . . . . . . 1 . . . . . . 1 . . . . . . 1 . . . . 2 . . . . . Hauler 23 | . . 5 . 2 3 . 1 . . . . 4 . 3 . . . . 1 . 1 . . . . . . 1 . . . . 1 . . . 1 . Recycler 21 | 1 . 1 . 4 1 . . . . . . 1 . 3 . . . . . . 1 2 . . . . . 2 . . . . 3 2 . . . . Minesweeper 1 | . . . . . . . . . . . . . . . . . . . . . . . . . . . . . 1 . . . . . . . . . Mechanic 3 | . 1 . . 1 . . . . . . . . . 1 . . . . . . . . . . . . . . . . . . . . . . . . Operator 8 | . 1 . . . . . . . . . . 1 . . . . . . 2 . 1 1 . . . 1 . 1 . . . . . . . . . . Drone 4 | . . . . . . . . . . . . . . . . . . . . . . . . . . 1 . 1 . . . 2 . . . . . . Watcher 30 | . 2 4 . 3 5 . 1 . . . . 1 . 3 . . . . 2 . 1 . 1 . 2 1 . 1 . . . . . . 1 . 2 . Swarmer 74 | . 3 8 10 3 . . . . . . 4 3 . 8 . . . . . . 9 4 . . . 5 . 12 . . 1 4 . . . . . . Grunt 56 | . 7 13 . 17 . . . . . . . . . 8 . . . . . . . 2 . . . 1 . . . . 5 . . . . . . 3 Brawler 2 | . . 1 . . . . . . . . . . . 1 . . . . . . . . . . . . . . . . . . . . . . . . Duelist 1 | . . 1 . . . . . . . . . . . . . . . . . . . . . . . . . . . . . . . . . . . . Protector 1 | . . . . . . . . . . . . . . . . . . . . . . . . . . . . . . . 1 . . . . . . . Sentry 19 | . . 9 . 7 1 . . . . . . . . . . . . . . . . 2 . . . . . . . . . . . . . . . . Specialist 1 | . . . . . . . . . . . . . . . . . . . . . . . . . . . . . . . 1 . . . . . . . Hunter 3 | . . . . . . . . . . . . . . . . . . . . . . 2 . . . . . 1 . . . . . . . . . . Programmer 13 | . . . . . 1 . . . . . . 2 . 2 . . . . . . . . . . . 1 . . . . 1 . 5 . . . . 1 Combat Programmer 2 | . . . . . . . . . . . . . . . . . . . . . . . . . . . . . . . . . . . . . . 2 Savage 1 | . . . . . . . . . . . . . . . . . . . . . . 1 . . . . . . . . . . . . . . . . Best Kill Streak 10 | 1 3 4 7 5 3 . 1 . . . 4 4 . 9 . . . . 2 . 10 4 1 . 1 5 . 6 1 . 6 4 6 4 1 . 2 3 Combat Bots Only 9 | . 2 4 7 3 1 . . . . . 4 3 . 6 . . . . . . 9 4 . . . 5 . 6 . . 6 4 3 . . . . 3 Max Kills in Single Turn 4 | 1 2 3 2 2 1 . 1 . . . 1 2 . 3 . . . . 1 . 4 3 1 . 1 4 . 4 1 . 3 2 2 1 1 . 1 2 Gunslinging 1 | . . 1 1 1 . . . . . . . . . . . . . . . . . . . . . . . . . . . . . . . . . . Exploded 4 | . 1 3 2 . . . . . . . 1 2 . 3 . . . . . . 4 3 . . . 4 . 4 . . 3 2 2 . . . . 2 Melee 1 | . . . . . 1 . . . . . 1 1 . 1 . . . . . . . 1 . . . 1 . . . . . 1 1 . . . . 1 Uniques/NPCs Destroyed . | . . . . . . . . . . . . . . . . . . . . . . . . . . . . . . . . . . . . . . . Combat | -11 -10 -9 -9 -8 -7 -7 -7 -7 -7 -7 -6 -6 -6 -6 -6 -6 -6 -5 -5 -5 -5 -5 -5 -5 -5 -4 -4 -4 -4 -4 -4 -3 -3 -3 -2 -2 -1 -1 -------- Run | Yrd Mat Mat Min Mat Fac Was Fac Low Low Dat Pro Fac Was Fac Low Low Zio Pro Fac Was Fac Ext Cet Arc Hub Fac Was Fac Upp Upp War Pro Res Qua Res Tes Acc Com Hostile Shots Fired 1287 | . 99 113 39 112 27 . 62 . 4 . 15 46 . 126 . 3 . 9 5 . 31 53 . . 3 132 . 145 . . 8 14 114 14 10 45 4 54 Missed 627 | . 39 38 9 30 21 . 46 . 3 . 3 28 . 52 . 1 . 6 3 . 18 23 . . 1 78 . 78 . . 4 9 71 8 3 30 2 23 Hits 660 | . 60 75 30 82 6 . 16 . 1 . 12 18 . 74 . 2 . 3 2 . 13 30 . . 2 54 . 67 . . 4 5 43 6 7 15 2 31 Melee 7 | . . 2 . . . . . . . . . . . 3 . . . . . . . . . . . . . 1 . . . . . . . . . 1 Projectile 653 | . 60 73 30 82 6 . 16 . 1 . 12 18 . 71 . 2 . 3 2 . 13 30 . . 2 54 . 66 . . 4 5 43 6 7 15 2 30 AOE 13 | . . . . . . . . . . . . . . . . . . . . . . . . . . 2 . . . . . . . . . . . 11 Critical Strikes 26 | . 1 1 . . . . . . . . 1 . . 5 . . . . 1 . 1 2 1 . . 5 . . . . . . 5 . 1 . . 2 Actively Blocked 2 | . . . . . . . . . . . . . . . . . . . . . . . . . . . . . . . . . . . . . . 2 Part Disruptions 6 | . . . . . . . . . . . . . . . . . . . . . . . . . . 1 . . 1 . . . 1 . . . . 3 Damage Taken 13052 | . 690 998 293 1243 143 . 136 . 16 . 175 282 . 1503 . 39 . 25 38 . 237 727 45 . 83 1073 . 1247 68 . 255 104 969 57 156 297 52 2101 Core 2043 | . 95 63 30 135 . . 21 . . . 13 56 . 387 . 23 . . . . . 169 45 . 41 98 . 225 13 . 98 25 218 21 . 41 . 226 Absorbed by Shields 87 | . . . . . . . . . . . . . . . . . . . . . . 55 12 . . 5 . 6 . . . . . . . . . 9 Redirected to Shielding 821 | . . . . . . . . . . . . . . . . . . . . . . 40 . . 37 86 . 58 . . . 41 144 . . . 18 397 Regen/Repaired (Parts) 1492 | . . . . 92 . . . . . . . 95 . 38 . . . . . . . . . . . 85 . 134 . . 131 . . 90 91 32 181 523 Core Remaining (%) 77 | 100 62 . 76 75 . . . . . . 95 . . . . . . 45 . . . . . . 74 . . . . . . 60 . 81 . 97 . 85 Volleys Fired 456 | 8 55 95 8 86 . . . . . . 4 14 . 25 2 3 . 4 5 . 3 68 1 . . 5 . 14 . 1 12 2 12 7 . . 1 21 Largest 3 | 2 2 3 3 3 . . . . . . 1 1 . 1 1 1 . 1 1 . 1 1 1 . . 1 . 1 . 1 1 1 1 1 . . 1 1 Hottest 120 | 70 100 100 69 84 . . . . . . 33 40 . 44 44 44 . 44 44 . 80 80 5 . . 80 . 105 . 80 80 80 80 94 . . 120 120 Shots Fired 860 | 16 110 263 14 252 . . . . . . 4 13 . 26 2 3 . 4 5 . 3 68 1 . . 5 . 15 . 1 12 2 12 7 . . 1 21 Gun 643 | 16 108 252 9 252 . . . . . . . 1 . . . . . . . . . . . . . . . . . . . . . 5 . . . . Cannon 53 | . . . . . . . . . . . . 8 . 12 2 3 . 2 4 . . . . . . . . 3 . . . . . 2 . . 1 16 Launcher 113 | . 1 8 5 . . . . . . . 4 4 . 14 . . . . . . 3 27 . . . 3 . 12 . 1 12 2 12 . . . . 5 Special 51 | . 1 3 . . . . . . . . . . . . . . . 2 1 . . 41 1 . . 2 . . . . . . . . . . . . Kinetic 620 | 8 67 252 9 252 . . . . . . . 9 . 12 2 3 . 2 4 . . . . . . . . . . . . . . . . . . . Thermal 65 | 8 42 3 . . . . . . . . . . . . . . . . . . . . . . . . . 3 . . . . . . . . 1 8 Explosive 113 | . 1 8 5 . . . . . . . 4 4 . 14 . . . . . . 3 27 . . . 3 . 12 . 1 12 2 12 . . . . 5 Electromagnetic 15 | . . . . . . . . . . . . . . . . . . . . . . . . . . . . . . . . . . 7 . . . 8 Robot Hit Streak 18 | 2 7 13 18 17 . . . . . . . . . 6 . . . 3 . . 4 17 15 . . 1 . 3 . . . 4 6 . . . . 10 Robot Miss Streak 7 | 2 5 7 1 4 . . . . . . . . . 1 . . . . . . . 2 . . . 1 . . . . . . . . . . . 2 Penetration Max 1 | . . . . 1 . . . . . . . . . . . . . . . . . . . . . . . . . . . . . . . . . . Secondary Targets 15 | . 2 4 3 6 . . . . . . . . . . . . . . . . . . . . . . . . . . . . . . . . . . Max Gunslinging Chain 1 | . 1 1 1 1 . . . . . . . . . . . . . . . . . . . . . . . . . . . . . . . . . . Shots Hit Robots 710 | 6 63 138 12 163 27 . 4 . . . 4 31 . 59 . . . 2 6 . 12 57 2 . 6 14 . 12 5 2 . 3 25 4 2 . 5 46 Core Hits 455 | 3 28 69 10 75 13 . 1 . . . 6 14 . 43 . . . . 1 . 16 46 1 . 2 15 . 28 1 1 30 7 20 2 1 . 1 21 Critical Kills . | . . . . . . . . . . . . . . . . . . . . . . . . . . . . . . . . . . . . . . . Critical Parts Destroyed 12 | . . 2 . 6 . . . . . . . . . 3 . . . . 1 . . . . . . . . . . . . . . . . . . . Critical Strikes 39 | . 4 2 . 6 1 . . . . . . 6 . 10 . . . . 1 . 1 3 . . . 2 . . . . . . 2 . . . . 1 Burn 4 | . 4 . . . . . . . . . . . . . . . . . . . . . . . . . . . . . . . . . . . . . Destroy 8 | . . 2 . 6 . . . . . . . . . . . . . . . . . . . . . . . . . . . . . . . . . . Smash 4 | . . . . . . . . . . . . . . 3 . . . . 1 . . . . . . . . . . . . . . . . . . . Sever 22 | . . . . . 1 . . . . . . 6 . 7 . . . . . . 1 3 . . . 2 . . . . . . 2 . . . . . Impale 1 | . . . . . . . . . . . . . . . . . . . . . . . . . . . . . . . . . . . . . . 1 Melee Attacks 832 | . . 1 . 2 69 . 22 . 7 . 16 74 . 102 11 17 . 21 39 . 31 32 18 11 19 74 . 41 7 12 . 29 70 21 9 5 23 49 Impact 41 | . . . . . . . . . . . . . . 22 . 5 . 4 10 . . . . . . . . . . . . . . . . . . . Slashing 745 | . . 1 . 2 69 . 22 . 7 . 16 74 . 80 11 12 . 17 29 . 31 27 18 11 18 65 . 36 7 10 . 28 61 21 9 5 18 40 Piercing 45 | . . . . . . . . . . . . . . . . . . . . . . 5 . . 1 9 . 5 . 2 . 1 9 . . . 5 8 Sneak Attacks 80 | . . . . . 11 . 1 . . . . 11 . 12 . . . . 2 . 5 7 . . . 3 . 6 2 . . . 13 4 . . 3 . Combat Hostiles 1 | . . . . . . . . . . . . . . . . . . . . . . . . . . 1 . . . . . . . . . . . . Follow-up Attacks 36 | . . . . . 2 . . . . . 1 3 . 9 . . . . . . 1 2 1 . 2 5 . 1 3 1 . 2 2 . . . . 1 Damage Inflicted 36393 | 63 764 2542 476 3160 1548 . 297 . . . 375 2491 . 4130 . . . . 433 . 1734 3564 63 . 246 1413 . 2497 308 133 1870 485 2185 624 214 . 664 4114 Guns 5948 | 63 658 1953 134 3140 . . . . . . . . . . . . . . . . . . . . . . . . . . . . . . . . . . Cannons 461 | . . . . . . . . . . . . . . . . . . . . . . . . . . . . . . . . . . . . . . 461 Explosions 11641 | . 106 589 342 . . . . . . . 188 223 . 1324 . . . . . . 882 2171 . . . 698 . 1729 . . 1870 410 578 . . . . 531 Melee 18323 | . . . . . 1548 . 297 . . . 187 2268 . 2806 . . . . 433 . 852 1393 63 . 246 715 . 768 308 133 . 75 1607 624 214 . 664 3122 Ramming 20 | . . . . 20 . . . . . . . . . . . . . . . . . . . . . . . . . . . . . . . . . . Kinetic 5590 | 25 338 1953 134 3140 . . . . . . . . . . . . . . . . . . . . . . . . . . . . . . . . . . Thermal 829 | 38 320 97 . . . . . . . . . . . . . . . . . . . . . . . . . . . . . . . . . . . 374 Explosive 11544 | . 106 492 342 . . . . . . . 188 223 . 1324 . . . . . . 882 2171 . . . 698 . 1729 . . 1870 410 578 . . . . 531 Electromagnetic 87 | . . . . . . . . . . . . . . . . . . . . . . . . . . . . . . . . . . . . . . 87 Impact 1290 | . . . . . . . . . . . . . . 903 . . . . 387 . . . . . . . . . . . . . . . . . . . Slashing 16460 | . . . . . 1548 . 297 . . . 187 2268 . 1903 . . . . 46 . 852 1328 63 . 213 645 . 735 308 84 . 42 1543 624 214 . 664 2896 Piercing 573 | . . . . . . . . . . . . . . . . . . . . . . 65 . . 33 70 . 33 . 49 . 33 64 . . . . 226 Highest Corruption 13 | . 1 . . . 1 7 7 7 7 7 7 2 8 8 7 7 7 . . 8 9 2 . . 1 3 13 13 13 13 13 . 10 10 . . . 6 Average Corruption 5 | . 1 . . . 1 4 7 7 7 7 7 1 8 6 7 7 7 . . 8 4 1 . . 1 2 9 13 13 13 13 . 5 6 . . . 4 Corruption Purged 26 | . . . . . . . . . . . . 2 . 5 . . . . . . 7 2 . . . . . . . . . . . 10 . . . . Corruption Blocked . | . . . . . . . . . . . . . . . . . . . . . . . . . . . . . . . . . . . . . . . Effects 255 | . 6 . . . 1 1 17 2 8 2 11 6 . 50 6 4 1 . . . 22 11 . . . 14 4 45 5 4 . . 18 7 . . . 10 Message Errors 60 | . 4 . . . . . 3 1 2 . 1 1 . 11 . 1 . . . . 6 3 . . . 2 . 15 2 1 . . 3 3 . . . 1 Matter Fused 70 | . . . . . . . 8 . 1 2 6 2 . 12 2 . . . . . 7 2 . . . 5 2 10 . 1 . . 6 1 . . . 3 Heat Flow Errors 33 | . . . . . . . 1 . 3 . 2 1 . 9 2 . . . . . 3 1 . . . 2 . 3 2 . . . 1 1 . . . 2 Energy Discharges 25 | . . . . . 1 . 1 . 1 . 1 . . 6 1 3 . . . . 2 2 . . . . . 6 . 1 . . . . . . . . Parts Rejected 3 | . . . . . . . . . . . . . . . . . . . . . . . . . . 1 . 1 . . . . 1 . . . . . Parts Fused 4 | . . . . . . . . . . . . . . 2 . . . . . . . . . . . . . 1 . . . . . . . . . 1 Data Loss (minor) 33 | . . . . . . . 3 1 1 . . 1 . 7 1 . 1 . . . 2 1 . . . 2 . 5 1 1 . . 3 1 . . . 2 Data Loss (major) 12 | . . . . . . . 1 . . . 1 . . 2 . . . . . . 1 . . . . 2 . 1 . . . . 2 1 . . . 1 Misfires 4 | . 2 . . . . . . . . . . . . 1 . . . . . . . . . . . . . 1 . . . . . . . . . . Alerts 4 | . . . . . . 1 . . . . . . . . . . . . . . 1 2 . . . . . . . . . . . . . . . . Misdirections 6 | . . . . . . . . . . . . . . . . . . . . . . . . . . . 2 2 . . . . 2 . . . . . Weapon Failures 1 | . . . . . . . . . . . . 1 . . . . . . . . . . . . . . . . . . . . . . . . . . Overload Shots . | . . . . . . . . . . . . . . . . . . . . . . . . . . . . . . . . . . . . . . . Overflow Damage 3677 | . . 6 16 . 259 . 53 . . . 31 385 . 484 . . . . 248 . 238 414 . . 26 161 . 273 57 18 7 . 270 207 25 . 299 200 Projectiles . | . . . . . . . . . . . . . . . . . . . . . . . . . . . . . . . . . . . . . . . Explosions 272 | . . 6 16 . . . . . . . 8 21 . 12 . . . . . . 8 28 . . . 56 . 110 . . 7 . . . . . . . Melee 3405 | . . . . . 259 . 53 . . . 23 364 . 472 . . . . 248 . 230 386 . . 26 105 . 163 57 18 . . 270 207 25 . 299 200 Knockbacks 1 | . . . . . . . . . . . . . . . . . . . 1 . . . . . . . . . . . . . . . . . . . Impact 1 | . . . . . . . . . . . . . . . . . . . 1 . . . . . . . . . . . . . . . . . . . Kinetic . | . . . . . . . . . . . . . . . . . . . . . . . . . . . . . . . . . . . . . . . Secondary . | . . . . . . . . . . . . . . . . . . . . . . . . . . . . . . . . . . . . . . . Self-Inflicted Damage 254 | . . 25 53 . . . . . . . . . . 128 . . . . . . . . . . . . . 48 . . . . . . . . . . Shots 11 | . . 2 3 . . . . . . . . . . 4 . . . . . . . . . . . . . 2 . . . . . . . . . . Rammed 3 | . . . . 3 . . . . . . . . . . . . . . . . . . . . . . . . . . . . . . . . . . Targets Rammed 4 | . . . . 4 . . . . . . . . . . . . . . . . . . . . . . . . . . . . . . . . . . Kicked . | . . . . . . . . . . . . . . . . . . . . . . . . . . . . . . . . . . . . . . . Crushed 1 | . . . . 1 . . . . . . . . . . . . . . . . . . . . . . . . . . . . . . . . . . Highest Temperature 385 | 90 170 385 24 248 6 . 112 . 253 . 293 94 . 268 215 . . . 37 . 242 240 . . 25 257 . 218 302 30 365 106 180 101 310 . . 30 Average Temperature 58 | 35 58 35 11 55 4 . 39 . 138 . 156 4 . 61 115 . . . 10 . 120 71 . . 25 76 . 72 119 16 64 40 42 79 98 . . 15 Received Heat Transfer 2213 | . 333 357 . 576 12 . 48 . . . 9 12 . 388 . . . . 27 . 9 130 . . . 90 . 75 . . . 9 57 . 9 18 9 45 Effects 7 | . . 1 . . . . . . 1 . . . . . . . . . . . . . . . . . . 3 . . 2 . . . . . . . Shutdowns 1 | . . 1 . . . . . . . . . . . . . . . . . . . . . . . . . . . . . . . . . . . . Energy Bleed 1 | . . . . . . . . . 1 . . . . . . . . . . . . . . . . . . . . . . . . . . . . . Interference 5 | . . . . . . . . . . . . . . . . . . . . . . . . . . . . 3 . . 2 . . . . . . . Siege Activations . | . . . . . . . . . . . . . . . . . . . . . . . . . . . . . . . . . . . . . . . Martial Activations . | . . . . . . . . . . . . . . . . . . . . . . . . . . . . . . . . . . . . . . . Shielding Activations . | . . . . . . . . . . . . . . . . . . . . . . . . . . . . . . . . . . . . . . . Robots Disrupted . | . . . . . . . . . . . . . . . . . . . . . . . . . . . . . . . . . . . . . . . Combat Hostiles . | . . . . . . . . . . . . . . . . . . . . . . . . . . . . . . . . . . . . . . . Robots Corrupted 5 | . . . . . . . . . . . . . . 3 . . . . 2 . . . . . . . . . . . . . . . . . . . Combat Hostiles 2 | . . . . . . . . . . . . . . 2 . . . . . . . . . . . . . . . . . . . . . . . . Parts Fried 10 | . . . . . . . . . . . . . . 5 . . . . 4 . . 1 . . . . . . . . . . . . . . . . Impact Corruptions 16 | . . . . . . . . . . . . . . 8 . . . . 8 . . . . . . . . . . . . . . . . . . . Robots Melted . | . . . . . . . . . . . . . . . . . . . . . . . . . . . . . . . . . . . . . . . Combat Hostiles . | . . . . . . . . . . . . . . . . . . . . . . . . . . . . . . . . . . . . . . . Parts Melted 6 | . 5 1 . . . . . . . . . . . . . . . . . . . . . . . . . . . . . . . . . . . . Heat Transferred 1633 | 111 1258 100 . . . . . . . . . . . . . . . . . . . . . . . . . . . . . . . . . . . 164 Parts Sabotaged . | . . . . . . . . . . . . . . . . . . . . . . . . . . . . . . . . . . . . . . . Parts Stolen . | . . . . . . . . . . . . . . . . . . . . . . . . . . . . . . . . . . . . . . . Parts Stripped . | . . . . . . . . . . . . . . . . . . . . . . . . . . . . . . . . . . . . . . . Power Chain Reactions . | . . . . . . . . . . . . . . . . . . . . . . . . . . . . . . . . . . . . . . . Alert | -11 -10 -9 -9 -8 -7 -7 -7 -7 -7 -7 -6 -6 -6 -6 -6 -6 -6 -5 -5 -5 -5 -5 -5 -5 -5 -4 -4 -4 -4 -4 -4 -3 -3 -3 -2 -2 -1 -1 ------- Run | Yrd Mat Mat Min Mat Fac Was Fac Low Low Dat Pro Fac Was Fac Low Low Zio Pro Fac Was Fac Ext Cet Arc Hub Fac Was Fac Upp Upp War Pro Res Qua Res Tes Acc Com Maximum Alert Level 3 | . . 2 1 2 1 . . . . . . 1 . 1 . . . . . . 1 3 2 1 2 1 . 1 . . . . 2 . . . . 2 Low Security (%) 61 | 100 100 34 17 46 79 100 100 . . . . 86 100 38 . . . . 100 100 41 43 . 86 81 97 100 67 . . . . 2 100 100 100 100 8 Level 1 30 | . . 63 82 34 20 . . . . . . 13 . 61 . . . . . . 58 33 9 13 12 2 . 32 . . . . 55 . . . . 56 Level 2 6 | . . 1 . 19 . . . . . . . . . . . . . . . . . 8 90 . 5 . . . . . . . 42 . . . . 34 Level 3 1 | . . . . . . . . . . . . . . . . . . . . . . 14 . . . . . . . . . . . . . . . . Level 4 . | . . . . . . . . . . . . . . . . . . . . . . . . . . . . . . . . . . . . . . . Level 5 . | . . . . . . . . . . . . . . . . . . . . . . . . . . . . . . . . . . . . . . . High Security . | . . . . . . . . . . . . . . . . . . . . . . . . . . . . . . . . . . . . . . . Max Security . | . . . . . . . . . . . . . . . . . . . . . . . . . . . . . . . . . . . . . . . Peak Influence 745 | 5 90 435 317 499 308 101 125 . . . . 275 91 393 . . . . 137 5 384 745 498 263 512 221 64 390 . . . . 555 196 15 32 50 470 Initial 378 | . . . 75 68 217 101 49 . . . . . 91 56 . . . . . 5 . 18 378 164 . 4 64 30 . . . . 367 177 3 . . . Average 163 | 1 28 214 244 254 125 92 70 . . . . 63 88 196 . . . . 58 3 176 313 447 65 93 102 58 130 . . . . 378 30 2 18 7 348 Influence Increases 14405 | 10 382 1143 272 1064 661 . 296 . 90 . 165 619 . 1026 . 75 . . 462 . 780 1481 213 211 1012 753 . 769 5 5 270 190 1348 203 50 63 177 610 Destroy 0b10 Robot/C 4540 | . 200 640 200 540 40 . . . . . 80 100 . 380 . . . . 20 . 340 620 80 80 360 140 . 260 . . 160 80 100 . . . . 120 Destroy 0b10 Robot/NC 745 | 10 25 55 . 85 75 . 10 . . . . 60 . 70 . . . . 30 . 40 65 5 5 15 25 . 50 5 5 5 10 55 20 5 . 15 . Destroy Leader 888 | . 44 198 30 150 26 . 4 . . . 10 40 . 70 . . . . 18 . 54 54 . . 96 12 . 24 . . . 10 20 . 2 . 6 20 Allied During Kill 668 | . . . . . . . . . . . . . . . . . . . . . 15 251 83 85 234 . . . . . . . . . . . . . Trap Triggered on 0b10 100 | . . . . . . . . . . . . . . . . . . . . . . . . . 20 30 . . . . . . 50 . . . . . Successful Hack 966 | . 13 22 . 58 59 . 85 . . . . 121 . 67 . . . . 51 . 55 4 8 . 32 162 . 12 . . . . 99 24 10 24 27 33 Select Force Hacks 80 | . . . . . 60 . 20 . . . . . . . . . . . . . . . . . . . . . . . . . . . . . . . Disable Machine 570 | . . 60 . 60 15 . . . . . . 45 . 30 . . . . 30 . 45 30 . 15 75 30 . 75 . . . . 15 15 . 30 . . Anti-Garrison Action 50 | . . . . . . . . . . . . . . . . . . . . . . . . . . . . . . . . . . . . . . 50 Destroy Structure 1703 | . 10 48 27 6 26 . 12 . . . . 58 . 79 . . . . 58 . 66 352 22 26 60 144 . 198 . . . . 184 24 18 9 39 237 Advance Influence 300 | . . . . . . . . . . . . . . . . . . . . . . . . . . . . . . . . . 300 . . . . . Partial Spotted 930 | . . . . 15 165 . 30 . . . . 75 . 120 . . . . 45 . 45 30 15 . 30 45 . 60 . . . . 180 15 . . . 60 Lose Combat Pursuer 2865 | . 90 120 15 150 195 . 135 . 90 . 75 120 . 210 . 75 . . 210 . 120 75 . . 90 165 . 90 . . 105 90 345 105 15 . 90 90 Influence Decreases 14097 | 10 382 948 290 763 849 219 336 31 90 . 165 358 180 842 169 109 62 . 447 15 742 842 479 622 1003 579 139 714 97 12 110 250 1133 512 56 63 177 302 Entered New Map 2176 | . . . 120 109 261 189 22 13 . . . . 170 25 99 19 62 . . 10 . 20 299 247 . 5 119 14 37 2 . 160 33 138 3 . . . Time Decay 7689 | 10 352 618 170 604 428 10 294 18 90 . 155 338 10 557 70 90 . . 280 5 382 532 140 295 203 374 20 320 50 10 110 90 380 204 53 43 122 262 Search Patrol Dispatched 300 | . . . . . . . . . . . . . . . . . . . . . . . . . . . . . . . . . 300 . . . . . Lost Part 620 | . 30 30 . 50 10 . . . . . 10 10 . 110 . . . . . . 10 70 . . . 50 . 80 10 . . . 100 . . 10 . 40 Lost Ally 837 | . . . . . . 20 20 . . . . 10 . . . . . . 30 . 50 220 40 80 267 . . 60 . . . . 20 10 . 10 . . Purge Threat 2475 | . . 300 . . 150 . . . . . . . . 150 . . . . 137 . 300 . . . 533 150 . 240 . . . . 300 160 . . 55 . Squads Dispatched 97 | . 2 3 . 3 5 . 5 . . . 1 9 . 13 . . . . 6 . 5 2 . . 3 8 . 11 . . . . 7 2 3 6 2 1 Investigation 31 | . 1 . . 1 2 . 3 . . . . 2 . 6 . . . . 3 . 3 . . . . 1 . 2 . . . . 2 . 2 2 1 . Extermination 35 | . . . . . 3 . 2 . . . . 3 . 5 . . . . 3 . 2 . . . 3 4 . 4 . . . . 3 1 . . 1 1 Reinforcement 29 | . 1 2 . 2 . . . . . . . 4 . 2 . . . . . . . 2 . . . 3 . 5 . . . . 2 1 1 4 . . Assault 2 | . . 1 . . . . . . . . 1 . . . . . . . . . . . . . . . . . . . . . . . . . . . Garrison . | . . . . . . . . . . . . . . . . . . . . . . . . . . . . . . . . . . . . . . . Intercept . | . . . . . . . . . . . . . . . . . . . . . . . . . . . . . . . . . . . . . . . Searches Triggered 2 | . . . . . . . . . . . . . . . . . . . . . . . . . . . . . . . . . 2 . . . . . Data Miner Redirects 1 | . . . . . . . . . . . . . . 1 . . . . . . . . . . . . . . . . . . . . . . . . Construction Impeded 3 | . . . . . . . . . . . . . . . . . . . . . . 1 . . . . . 2 . . . . . . . . . . Haulers Reinforced 2 | . . . . . . . . . . . . . . 1 . . . . . . . . . . . . . . . . . . . . 1 . . . Active Scanning Responses . | . . . . . . . . . . . . . . . . . . . . . . . . . . . . . . . . . . . . . . . Cargo Convoy Interrupts . | . . . . . . . . . . . . . . . . . . . . . . . . . . . . . . . . . . . . . . . Stealth | -11 -10 -9 -9 -8 -7 -7 -7 -7 -7 -7 -6 -6 -6 -6 -6 -6 -6 -5 -5 -5 -5 -5 -5 -5 -5 -4 -4 -4 -4 -4 -4 -3 -3 -3 -2 -2 -1 -1 --------- Run | Yrd Mat Mat Min Mat Fac Was Fac Low Low Dat Pro Fac Was Fac Low Low Zio Pro Fac Was Fac Ext Cet Arc Hub Fac Was Fac Upp Upp War Pro Res Qua Res Tes Acc Com Distress Signals 40 | . 1 1 . 2 . . 2 . . . . 2 . . . . . . . . 1 5 1 . 3 3 . 3 . . . . 7 1 4 2 1 1 Communications Jammed . | . . . . . . . . . . . . . . . . . . . . . . . . . . . . . . . . . . . . . . . Distress Signals . | . . . . . . . . . . . . . . . . . . . . . . . . . . . . . . . . . . . . . . . Times Spotted 660 | . 25 52 11 39 26 5 18 . 9 . 4 22 4 56 . 6 . 1 24 5 22 31 4 1 17 73 6 48 . . 11 9 50 13 6 31 10 21 Peak Tracking Total 20 | . 4 6 7 4 5 5 7 . 5 . 5 5 5 9 . 5 . 1 6 5 6 6 5 . 7 16 6 10 . . 10 5 14 4 2 20 5 6 Tactical Retreats 137 | . 4 4 1 7 9 . 5 . 2 . 4 5 . 11 . 2 . . 9 . 4 3 . . 1 19 1 16 . . 3 3 14 4 1 . 3 2 Traps | -11 -10 -9 -9 -8 -7 -7 -7 -7 -7 -7 -6 -6 -6 -6 -6 -6 -6 -5 -5 -5 -5 -5 -5 -5 -5 -4 -4 -4 -4 -4 -4 -3 -3 -3 -2 -2 -1 -1 ------- Run | Yrd Mat Mat Min Mat Fac Was Fac Low Low Dat Pro Fac Was Fac Low Low Zio Pro Fac Was Fac Ext Cet Arc Hub Fac Was Fac Upp Upp War Pro Res Qua Res Tes Acc Com Traps Triggered 34 | . 3 . . . 3 . . . . . . 6 . 3 . . . . 1 . . 3 . . 2 3 . 5 1 . 2 . . . . 1 1 . Indirectly . | . . . . . . . . . . . . . . . . . . . . . . . . . . . . . . . . . . . . . . . Trap Hack Attempts . | . . . . . . . . . . . . . . . . . . . . . . . . . . . . . . . . . . . . . . . Triggered . | . . . . . . . . . . . . . . . . . . . . . . . . . . . . . . . . . . . . . . . Disarmed 7 | . . . . . . . . . . . . . . . . . . . . . . 6 . . . . . . . . . . . . . . . 1 Reprogrammed 18 | . . . . . . . . . . . . . . . . . . . . . . . . . 6 6 . . . . . . 6 . . . . . Reused 10 | . . . . . . . . . . . . . . . . . . . . . . . . . 2 3 . . . . . . 5 . . . . . Traps Extracted . | . . . . . . . . . . . . . . . . . . . . . . . . . . . . . . . . . . . . . . . Installed . | . . . . . . . . . . . . . . . . . . . . . . . . . . . . . . . . . . . . . . . Triggered 10 | . . . . . . . . . . . . . . . . . . . . . . . . . 2 3 . . . . . . 5 . . . . . Machines | -11 -10 -9 -9 -8 -7 -7 -7 -7 -7 -7 -6 -6 -6 -6 -6 -6 -6 -5 -5 -5 -5 -5 -5 -5 -5 -4 -4 -4 -4 -4 -4 -3 -3 -3 -2 -2 -1 -1 ---------- Run | Yrd Mat Mat Min Mat Fac Was Fac Low Low Dat Pro Fac Was Fac Low Low Zio Pro Fac Was Fac Ext Cet Arc Hub Fac Was Fac Upp Upp War Pro Res Qua Res Tes Acc Com Machines Disabled 41 | . . 4 . 4 1 . . . . . 1 3 . 2 . . . . 2 . 3 2 . 1 5 2 . 5 . . . . 1 1 . 2 . 2 Max in Single Turn 3 | . . 3 . 1 1 . . . . . 1 2 . 1 . . . . 1 . 2 1 . . 1 2 . 1 . . . . 1 1 . 1 . 2 Garrison Access 20 | . . . . . 2 . . . . . . 4 . 1 . . . . . . 3 . . . 1 2 . 2 . . . . 1 1 1 1 1 . Phase Generator 1 | . . . . . . . . . . . . . . . . . . . . . . . . . . . . . . . . . . . . . . 1 Network Hub 4 | . . . . . . . . . . . . . . . . . . . . . . . . . 4 . . . . . . . . . . . . . Machines Repaired . | . . . . . . . . . . . . . . . . . . . . . . . . . . . . . . . . . . . . . . . Machines Dismantled 3 | . . . . . . . . . . . . . . . . . . . . . . . . . 3 . . . . . . . . . . . . . Machines Sabotaged . | . . . . . . . . . . . . . . . . . . . . . . . . . . . . . . . . . . . . . . . Overloaded Fab Kills . | . . . . . . . . . . . . . . . . . . . . . . . . . . . . . . . . . . . . . . . Hacking | -11 -10 -9 -9 -8 -7 -7 -7 -7 -7 -7 -6 -6 -6 -6 -6 -6 -6 -5 -5 -5 -5 -5 -5 -5 -5 -4 -4 -4 -4 -4 -4 -3 -3 -3 -2 -2 -1 -1 --------- Run | Yrd Mat Mat Min Mat Fac Was Fac Low Low Dat Pro Fac Was Fac Low Low Zio Pro Fac Was Fac Ext Cet Arc Hub Fac Was Fac Upp Upp War Pro Res Qua Res Tes Acc Com Machines Accessed 255 | . 8 10 . 11 24 . 18 1 . 4 . 21 . 22 1 . 1 . 15 . 19 6 2 . 12 15 . 16 . . 4 . 11 11 3 6 7 7 Terminals 177 | . 7 9 . 9 15 . 15 . . . . 15 . 14 . . . . 11 . 12 6 2 . 11 9 . 9 . . . . 7 9 2 4 5 6 Fabricators 22 | . . . . . 3 . 2 . . . . . . 3 . . . . 2 . 4 . . . . 1 . 3 . . . . 2 . . 1 1 . Repair Stations 9 | . 1 . . 2 . . . . . . . 1 . 1 . . . . . . . . . . . 2 . 1 . . . . . 1 . . . . Recycling Units 12 | . . 1 . . 4 . . . . . . 1 . 2 . . . . . . . . . . . 1 . 1 . . . . 1 . . . . 1 Scanalyzers . | . . . . . . . . . . . . . . . . . . . . . . . . . . . . . . . . . . . . . . . Garrison Access 24 | . . . . . 2 . 1 . . . . 4 . 2 . . . . 2 . 3 . . . 1 2 . 2 . . . . 1 1 1 1 1 . Total Hacks 925 | . 18 28 . 37 53 . 42 1 . 28 . 55 . 65 1 . 2 . 56 . 69 18 6 . 47 95 . 56 . . 10 . 71 57 15 32 40 23 Successful 611 | . 3 14 . 25 34 . 25 1 . 28 . 39 . 35 1 . 2 . 31 . 50 14 5 . 38 57 . 37 . . 10 . 45 45 6 23 29 14 Failed 311 | . 15 14 . 12 19 . 16 . . . . 16 . 30 . . . . 25 . 19 4 1 . 9 37 . 19 . . . . 26 11 9 9 11 9 Catastrophic 39 | . 2 1 . . 2 . 2 . . . . 2 . 3 . . . . 5 . 1 . . . . 6 . 5 . . . . 5 1 3 1 . . Database Lockouts 3 | . . . . . . . 1 . . . . . . . . . . . . . . . . . . 1 . . . . . . . 1 . . . . Manual 502 | . 8 15 . 27 35 . 25 . . . 1 29 . 35 . . . . 33 . 36 13 1 . 26 51 . 31 . . 1 . 45 40 10 10 17 13 Terminals 720 | . 16 25 . 31 42 . 37 . . . . 42 . 45 . . . . 39 . 48 18 6 . 46 78 . 43 . . . . 52 54 14 29 35 20 Fabricators 77 | . . . . . 3 . 3 . . . . . . 8 . . . . 13 . 15 . . . . 9 . 5 . . . . 16 . . 2 3 . Repair Stations 22 | . 2 . . 6 . . . . . . . 2 . 4 . . . . . . . . . . . 4 . 2 . . . . . 2 . . . . Recycling Units 24 | . . 3 . . 6 . . . . . . 3 . 3 . . . . . . . . . . . 2 . 2 . . . . 2 . . . . 3 Scanalyzers . | . . . . . . . . . . . . . . . . . . . . . . . . . . . . . . . . . . . . . . . Garrison Access 40 | . . . . . 2 . 2 . . . . 8 . 5 . . . . 4 . 6 . . . 1 2 . 4 . . . . 1 1 1 1 2 . Terminal Hacks 309 | . 3 2 . 8 13 . 10 1 . 28 . 12 . 14 1 . 2 . 13 . 19 5 5 . 25 29 . 14 . . 10 . 20 25 5 14 20 11 Record 20 | . . . . . . . . . . 11 . . . . . . . . . . . . 4 . 1 . . . . . 4 . . . . . . . Part Schematic 40 | . . . . . 1 . 2 . . 8 . 1 . . . . 2 . 4 . 5 1 . . 1 6 . . . . . . 3 2 2 1 1 . Robot Schematic 8 | . . . . . . . 1 . . 6 . . . . . . . . . . . . . . . 1 . . . . . . . . . . . . Robot Analysis 1 | . . . . 1 . . . . . . . . . . . . . . . . . . . . . . . . . . . . . . . . . . Prototype ID Bank 23 | . . . . . 1 . 3 . . 3 . 1 . 1 . . . . . . 1 1 . . 2 1 . . . . 4 . 2 . . 1 2 . Open Door 7 | . . . . . . . . 1 . . . . . . 1 . . . . . 1 . 1 . . . . . . . 2 . . . . . . 1 Level Access Points 3 | . . . . . . . . . . . . . . . . . . . . . . . . . 1 . . . . . . . . 1 . 1 . . Branch Access Points 9 | . . . . 1 . . . . . . . . . 1 . . . . . . 1 . . . . 1 . 1 . . . . 1 1 1 . 1 . Terminal Index 16 | . . . . 1 1 . 1 . . . . 1 . 1 . . . . 1 . 1 1 . . 1 1 . 1 . . . . 1 1 . 1 1 1 Fabricator Index 3 | . . . . . . . . . . . . . . . . . . . . . . . . . . 1 . . . . . . . 1 . . 1 . Repair Station Index 2 | . . . . . . . . . . . . . . . . . . . . . . . . . . . . 1 . . . . . . . . 1 . Recycling Unit Index 1 | . . . . . . . . . . . . . . . . . . . . . . . . . . . . . . . . . . . . . 1 . Alert Level 18 | . . . . . . . 1 . . . . 1 . 3 . . . . 1 . . . . . 2 4 . 1 . . . . 1 1 . 1 1 1 Unreport Threat 19 | . . 2 . . 1 . . . . . . . . 1 . . . . 1 . 2 . . . 4 1 . 2 . . . . 2 2 . . 1 . Locate Traps 41 | . 2 . . 1 3 . 1 . . . . 4 . 3 . . . . 2 . 5 1 . . 2 6 . . . . . . 3 4 . 2 1 1 Disarm Traps 2 | . . . . . . . . . . . . . . . . . . . . . . 1 . . . . . . . . . . . . . . . 1 Reprogram Traps 3 | . . . . . . . . . . . . . . . . . . . . . . . . . 1 1 . . . . . . 1 . . . . . Security Status 1 | . . . . . . . . . . . . . . . . . . . . . . . . . . . . 1 . . . . . . . . . . Patrol Status 4 | . . . . . . . . . . . . . . . . . . . . . . . . . . . . . . . . . 1 1 . 1 1 . Investigation Status 1 | . . . . . . . . . . . . . . . . . . . . . . . . . . . . . . . . . . . . 1 . . Recall Investigation 4 | . . . . . . . . . . . . . . . . . . . . . . . . . . . . . . . . . 1 . . 2 1 . Recall Extermination 6 | . . . . . . . . . . . . 1 . . . . . . 1 . 1 . . . . . . 1 . . . . . 1 . . 1 . Recall Reinforcements 1 | . . . . . . . . . . . . . . . . . . . . . . . . . . . . . . . . . . 1 . . . . Hauler Manifests 12 | . 1 . . 1 2 . 1 . . . . . . 1 . . . . 1 . . . . . 1 1 . 1 . . . . . 1 . . 1 . Registered Components 11 | . . . . 1 . . . . . . . . . . . . . . 1 . 1 . . . 1 1 . 1 . . . . 1 1 1 . 1 1 Registered Prototypes 9 | . . . . . 1 . . . . . . 1 . . . . . . . . . . . . 1 1 . 1 . . . . . 1 . 1 1 1 Zone Layout 42 | . . . . 2 3 . . . . . . 2 . 3 . . . . 1 . 1 . . . 7 3 . 3 . . . . 3 6 1 2 3 2 Disengage Seal 2 | . . . . . . . . . . . . . . . . . . . . . . . . . . . . . . . . . . . . . . 2 Fabricator Hacks 41 | . . . . . 1 . 1 . . . . . . 3 . . . . 7 . 7 . . . . 7 . 2 . . . . 10 . . 1 2 . Network Status 6 | . . . . . 1 . 1 . . . . . . 1 . . . . . . 1 . . . . . . 1 . . . . 1 . . . . . Load Schematic 22 | . . . . . . . . . . . . . . 2 . . . . 4 . 4 . . . . 4 . 1 . . . . 5 . . 1 1 . Build 13 | . . . . . . . . . . . . . . . . . . . 3 . 2 . . . . 3 . . . . . . 4 . . . 1 . Repair Station Hacks 17 | . . . . 5 . . . . . . . 2 . 2 . . . . . . . . . . . 4 . 2 . . . . . 2 . . . . Scan Component 9 | . . . . 3 . . . . . . . 1 . 1 . . . . . . . . . . . 2 . 1 . . . . . 1 . . . . Repair 8 | . . . . 2 . . . . . . . 1 . 1 . . . . . . . . . . . 2 . 1 . . . . . 1 . . . . Recycling Unit Hacks 10 | . . 2 . . . . . . . . . 2 . 1 . . . . . . . . . . . 1 . 2 . . . . 1 . . . . 1 Report Inventory 8 | . . 1 . . . . . . . . . 2 . 1 . . . . . . . . . . . 1 . 1 . . . . 1 . . . . 1 Retrieve Components 2 | . . 1 . . . . . . . . . . . . . . . . . . . . . . . . . 1 . . . . . . . . . . Scanalyzer . | . . . . . . . . . . . . . . . . . . . . . . . . . . . . . . . . . . . . . . . Garrison Access Hacks 20 | . . . . . 2 . . . . . . 4 . 1 . . . . . . 3 . . . 1 2 . 2 . . . . 1 1 1 1 1 . Seal Access 20 | . . . . . 2 . . . . . . 4 . 1 . . . . . . 3 . . . 1 2 . 2 . . . . 1 1 1 1 1 . Unauthorized Hacks 214 | . . 10 . 12 18 . 14 . . . . 19 . 14 . . . . 11 . 21 9 . . 12 14 . 15 . . . . 13 17 . 7 6 2 Terminals 188 | . . 10 . 12 15 . 13 . . . . 18 . 10 . . . . 9 . 17 9 . . 12 12 . 12 . . . . 10 17 . 6 5 1 Track 7 | . . . . . . . . . . . . . . . . . . . 1 . 1 3 . . 1 . . . . . . . . 1 . . . . Assimilate 20 | . . . . . . . 3 . . . . 3 . 1 . . . . 1 . 1 2 . . . 2 . 1 . . . . 2 2 . 2 . . Botnet 97 | . . 5 . 5 10 . 4 . . . . 9 . 4 . . . . 6 . 8 3 . . 9 8 . 7 . . . . 5 7 . 2 4 1 Disrupt 5 | . . . . . . . . . . . . . . . . . . . . . 1 1 . . 1 . . 1 . . . . . . . 1 . . Operators 5 | . . . . . . . . . . . . . . . . . . . . . 1 . . . 1 . . . . . . . . 1 . 1 1 . Skim 54 | . . 5 . 7 5 . 6 . . . . 6 . 5 . . . . 1 . 5 . . . . 2 . 3 . . . . 3 6 . . . . Fabricators 22 | . . . . . 1 . 1 . . . . . . 4 . . . . 2 . 4 . . . . 2 . 3 . . . . 3 . . 1 1 . Prioritize 4 | . . . . . . . . . . . . . . . . . . . 1 . . . . . . 1 . . . . . . 1 . . . 1 . Liberate 6 | . . . . . 1 . . . . . . . . 1 . . . . . . 1 . . . . . . 2 . . . . 1 . . . . . Download 1 | . . . . . . . 1 . . . . . . . . . . . . . . . . . . . . . . . . . . . . . . . Recompile 11 | . . . . . . . . . . . . . . 3 . . . . 1 . 3 . . . . 1 . 1 . . . . 1 . . 1 . . Repair Stations . | . . . . . . . . . . . . . . . . . . . . . . . . . . . . . . . . . . . . . . . Recycling Units 4 | . . . . . 2 . . . . . . 1 . . . . . . . . . . . . . . . . . . . . . . . . . 1 Recyclers 1 | . . . . . . . . . . . . 1 . . . . . . . . . . . . . . . . . . . . . . . . . . Mask 1 | . . . . . . . . . . . . . . . . . . . . . . . . . . . . . . . . . . . . . . 1 Tunnel 2 | . . . . . 2 . . . . . . . . . . . . . . . . . . . . . . . . . . . . . . . . . Scanalyzers . | . . . . . . . . . . . . . . . . . . . . . . . . . . . . . . . . . . . . . . . Garrison Access . | . . . . . . . . . . . . . . . . . . . . . . . . . . . . . . . . . . . . . . . Data Cores Recovered 5 | . 1 . . . . . . . . . . . . . . . . . 1 . 1 . . . . . . 1 . . . . . . . . 1 . Used 2 | . . . . . . . . . . . . . . . . . . . . . 1 . . . . . . . . . . . . . . . 1 . Hacking Detections 177 | . 8 10 . 9 19 . 15 . . . . 18 . 17 . . . . 15 . 10 5 1 . 7 6 . 8 . . . . 8 4 2 4 7 4 Full Trace Events 14 | . 1 . . 1 . . 2 . . . . 1 . 3 . . . . 2 . . . . . . . . . . . . . 1 . 2 . 1 . Feedback Events . | . . . . . . . . . . . . . . . . . . . . . . . . . . . . . . . . . . . . . . . Feedback Blocked . | . . . . . . . . . . . . . . . . . . . . . . . . . . . . . . . . . . . . . . . Robot Schematics Acquired 8 | . . . . . . . 1 . . 6 . . . . . . . . . . . . . . . 1 . . . . . . . . . . . . Robots Built 2 | . . . . . . . . . . . . . . . . . . . . . 2 . . . . . . . . . . . . . . . . . Authchips . | . . . . . . . . . . . . . . . . . . . . . . . . . . . . . . . . . . . . . . . Time 76 | . . . . . . . . . . . . . . . . . . . . . 76 . . . . . . . . . . . . . . . . . Total Robot Build Rating 10 | . . . . . . . . . . . . . . . . . . . . . 10 . . . . . . . . . . . . . . . . . Part Schematics Acquired 41 | . . . . . 1 . 3 . . 8 . 1 . . . . 2 . 4 . 5 1 . . 1 6 . . . . . . 3 2 2 1 1 . Parts Built 12 | . . . . . . . . . . . . . . . . . . . 3 . 1 . . . . 3 . . . . . . 4 . . . 1 . Authchips 10 | . . . . . . . . . . . . . . . . . . . 3 . 1 . . . . 3 . . . . . . 3 . . . . . Time 499 | . . . . . . . . . . . . . . . . . . . 154 . 76 . . . . 130 . . . . . . 102 . . . 37 . Total Part Build Rating 77 | . . . . . . . . . . . . . . . . . . . 19 . 5 . . . . 19 . . . . . . 25 . . . 9 . Parts Repaired 8 | . . . . 2 . . . . . . . 1 . 1 . . . . . . . . . . . 2 . 1 . . . . . 1 . . . . Time 397 | . . . . 62 . . . . . . . 44 . 40 . . . . . . . . . . . 145 . 62 . . . . . 44 . . . . Parts Recycled . | . . . . . . . . . . . . . . . . . . . . . . . . . . . . . . . . . . . . . . . Recycled Matter . | . . . . . . . . . . . . . . . . . . . . . . . . . . . . . . . . . . . . . . . Retrieved Matter . | . . . . . . . . . . . . . . . . . . . . . . . . . . . . . . . . . . . . . . . Retrieved Components 6 | . . 3 . . . . . . . . . . . . . . . . . . . . . . . . . 3 . . . . . . . . . . Parts Scanalyzed . | . . . . . . . . . . . . . . . . . . . . . . . . . . . . . . . . . . . . . . . Part Schematics Acquired . | . . . . . . . . . . . . . . . . . . . . . . . . . . . . . . . . . . . . . . . Parts Damaged . | . . . . . . . . . . . . . . . . . . . . . . . . . . . . . . . . . . . . . . . Bothacking | -11 -10 -9 -9 -8 -7 -7 -7 -7 -7 -7 -6 -6 -6 -6 -6 -6 -6 -5 -5 -5 -5 -5 -5 -5 -5 -4 -4 -4 -4 -4 -4 -3 -3 -3 -2 -2 -1 -1 ------------ Run | Yrd Mat Mat Min Mat Fac Was Fac Low Low Dat Pro Fac Was Fac Low Low Zio Pro Fac Was Fac Ext Cet Arc Hub Fac Was Fac Upp Upp War Pro Res Qua Res Tes Acc Com Used RIF Installer . | . . . . . . . . . . . . . . . . . . . . . . . . . . . . . . . . . . . . . . . Robots Hacked 10 | . . . . . . . . . . . . . . . . . . 1 . . . 6 1 . . 1 . . . . . . . . . . . 1 Non-combat 3 | . . . . . . . . . . . . . . . . . . . . . . 2 . . . 1 . . . . . . . . . . . . Combat 5 | . . . . . . . . . . . . . . . . . . 1 . . . 3 1 . . . . . . . . . . . . . . . Robot Hacks Applied 9 | . . . . . . . . . . . . . . . . . . 1 . . . 6 1 . . 1 . . . . . . . . . . . . parse_system 6 | . . . . . . . . . . . . . . . . . . 1 . . . 4 1 . . . . . . . . . . . . . . . no_distress 2 | . . . . . . . . . . . . . . . . . . . . . . 2 . . . . . . . . . . . . . . . . find_chute 1 | . . . . . . . . . . . . . . . . . . . . . . . . . . 1 . . . . . . . . . . . . Manual 3 | . . . . . . . . . . . . . . . . . . 1 . . . 1 . . . . . . . . . . . . . . . 1 Relay Couplers Released . | . . . . . . . . . . . . . . . . . . . . . . . . . . . . . . . . . . . . . . . Fabnet Peak Effective % . | . . . . . . . . . . . . . . . . . . . . . . . . . . . . . . . . . . . . . . . Robots Rewired 25 | . . . . . . . . . . . . . . . . . . . . . . 25 . . . . . . . . . . . . . . . . Allies Hacked 1 | . . . . . . . . . . . . 1 . . . . . . . . . . . . . . . . . . . . . . . . . . Hacks Repelled 1 | . . . . . . . . . . . . . . . . . . . . . . . . . . . . . . . . . . . . 1 . . Allies | -11 -10 -9 -9 -8 -7 -7 -7 -7 -7 -7 -6 -6 -6 -6 -6 -6 -6 -5 -5 -5 -5 -5 -5 -5 -5 -4 -4 -4 -4 -4 -4 -3 -3 -3 -2 -2 -1 -1 -------- Run | Yrd Mat Mat Min Mat Fac Was Fac Low Low Dat Pro Fac Was Fac Low Low Zio Pro Fac Was Fac Ext Cet Arc Hub Fac Was Fac Upp Upp War Pro Res Qua Res Tes Acc Com Total Allies 63 | . . . . . . 1 2 . . . . 1 1 1 . . 2 1 1 1 3 37 5 . . . . 3 . . . . 2 1 . 1 . . Largest Group 25 | . . . . . . 1 1 . . . . 1 1 1 . . 2 3 1 1 3 24 25 25 19 . . 3 . . . . 1 1 . 1 . . Highest-Rated Group 1219 | . . . . . . 31 10 . . . . 26 31 26 . . 51 136 85 31 108 848 1219 1219 872 . . 141 . . . . 26 45 . 45 . . Highest-Rated Ally 159 | . . . . . . 31 10 . . . . 26 31 26 . . 31 85 85 31 41 159 159 143 96 . . 47 . . . . 26 45 . 45 . . Total Orders 11 | . . . . . . . . . . . . . . . . . . . . . . 6 1 2 2 . . . . . . . . . . . . . STAY 4 | . . . . . . . . . . . . . . . . . . . . . . 2 . . 2 . . . . . . . . . . . . . FOLLOW 2 | . . . . . . . . . . . . . . . . . . . . . . 2 . . . . . . . . . . . . . . . . AID 5 | . . . . . . . . . . . . . . . . . . . . . . 2 1 2 . . . . . . . . . . . . . . Ally Attacks 414 | . . . . . . 7 . . . . . . 5 . . . . 8 8 9 23 161 34 44 107 . . 8 . . . . . . . . . . Total Damage 10272 | . . . . . . 84 . . . . . . 40 . . . . 104 373 122 657 4073 840 1087 2717 . . 175 . . . . . . . . . . Kills 67 | . . . . . . . . . . . . . . . . . . . 2 . 8 27 5 6 19 . . . . . . . . . . . . . Allies Corrupted 4 | . . . . . . . . . . . . . . . . . . . . . . . . . 4 . . . . . . . . . . . . . Allies Melted 1 | . . . . . . . . . . . . . . . . . . . . . . . . . . . . . . . . . . . 1 . . . Intel | -11 -10 -9 -9 -8 -7 -7 -7 -7 -7 -7 -6 -6 -6 -6 -6 -6 -6 -5 -5 -5 -5 -5 -5 -5 -5 -4 -4 -4 -4 -4 -4 -3 -3 -3 -2 -2 -1 -1 ------- Run | Yrd Mat Mat Min Mat Fac Was Fac Low Low Dat Pro Fac Was Fac Low Low Zio Pro Fac Was Fac Ext Cet Arc Hub Fac Was Fac Upp Upp War Pro Res Qua Res Tes Acc Com Active Infowar (turns) 19749 | 33 353 . . 1872 1045 30 658 77 262 23 391 1260 27 1585 149 186 464 248 710 28 852 1153 253 1350 878 1187 41 942 78 140 591 349 808 641 376 99 376 234 Sensors 17445 | . . . . . 1044 30 658 77 262 23 391 1260 27 1585 149 186 464 248 710 28 825 1153 253 1350 878 1169 41 942 78 140 591 349 808 641 376 99 376 234 Seismic 2457 | 33 353 . . 1872 1 . . . . . . . . 198 . . . . . . . . . . . . . . . . . . . . . . . . ECM 1863 | . . . . . . . . . . . . 58 . 234 . 27 . . 15 . 27 . . . . 800 41 583 78 . . . . . . . . . Robot Analysis Total 1 | . . . . 1 . . . . . . . . . . . . . . . . . . . . . . . . . . . . . . . . . . Derelict Logs Recovered 8 | . . . . . . . . 2 1 . 2 . . . . 1 1 . . . . . . . . . . . . 1 . . . . . . . . Drone Launches . | . . . . . . . . . . . . . . . . . . . . . . . . . . . . . . . . . . . . . . . Drone Recoveries . | . . . . . . . . . . . . . . . . . . . . . . . . . . . . . . . . . . . . . . . Exploration | -11 -10 -9 -9 -8 -7 -7 -7 -7 -7 -7 -6 -6 -6 -6 -6 -6 -6 -5 -5 -5 -5 -5 -5 -5 -5 -4 -4 -4 -4 -4 -4 -3 -3 -3 -2 -2 -1 -1 ------------- Run | Yrd Mat Mat Min Mat Fac Was Fac Low Low Dat Pro Fac Was Fac Low Low Zio Pro Fac Was Fac Ext Cet Arc Hub Fac Was Fac Upp Upp War Pro Res Qua Res Tes Acc Com Turns Passed 25322 | 147 1218 2662 351 1941 1047 30 658 77 262 23 391 1260 27 1888 149 186 464 248 746 28 1019 1552 283 1350 878 1230 41 995 105 140 591 349 883 642 376 101 376 608 Spaces Moved 35098 | 76 548 924 121 637 2755 105 1540 273 510 80 318 2465 91 2830 387 384 1103 398 1267 87 1554 2028 161 55 1035 2284 133 2085 218 370 1034 711 2039 1042 1120 328 965 1037 Core 9 | 9 . . . . . . . . . . . . . . . . . . . . . . . . . . . . . . . . . . . . . . Treads 556 | 67 166 . . 240 . . . . . . . . . 83 . . . . . . . . . . . . . . . . . . . . . . . . Legs 1835 | . 382 924 121 396 . . . . . . . . . 12 . . . . . . . . . . . . . . . . . . . . . . . . Wheels . | . . . . . . . . . . . . . . . . . . . . . . . . . . . . . . . . . . . . . . . Hover 150 | . . . . . . . . . . . . . . 150 . . . . . . . . . . . . . . . . . . . . . . . . Flight 32548 | . . . . 1 2755 105 1540 273 510 80 318 2465 91 2585 387 384 1103 398 1267 87 1554 2028 161 55 1035 2284 133 2085 218 370 1034 711 2039 1042 1120 328 965 1037 Fastest Speed 17 | 50 120 190 260 150 28 28 28 28 28 28 28 26 27 24 27 27 27 27 24 30 25 21 29 29 29 17 29 22 28 28 21 21 21 26 22 22 20 20 Average Speed 40 | 146 179 237 260 206 28 28 28 28 28 28 28 26 27 38 27 27 27 27 24 30 29 32 29 29 29 26 29 27 28 28 25 24 24 26 23 22 20 20 Slowest Speed 330 | 160 260 330 260 305 28 28 28 28 28 28 28 28 27 240 27 27 27 27 30 30 30 111 29 29 113 31 29 31 28 28 31 26 31 27 27 22 20 90 Overloaded Moves 211 | . . . . . . . . . . . . . . . . . . . . . 26 8 . . . 85 . 92 . . . . . . . . . . Propulsion Burnouts . | . . . . . . . . . . . . . . . . . . . . . . . . . . . . . . . . . . . . . . . Robots Hopped 194 | . . . . . 18 2 4 . 2 . . 12 4 9 . . . . 4 2 15 1 . . 15 38 . 12 . . 2 1 8 12 . 3 4 26 Potential Cave-ins 6 | . . . . . . . . . . . . . . . . . . . . . . . . . . . . . . . . . 6 . . . . . Cave-ins Triggered . | . . . . . . . . . . . . . . . . . . . . . . . . . . . . . . . . . . . . . . . Exploration Rate (%) 60 | 6 86 90 45 68 66 67 45 40 56 68 52 59 70 62 65 45 84 50 44 76 43 85 68 70 80 59 96 60 49 53 93 77 46 89 28 61 22 31 Regions Visited 38 Branch Regions 20 Pre-discovered Areas 13 | . . 1 . 3 4 . 1 . . 1 . 1 . 1 . . . . . . 1 . . . . . . . . . . . . . . . . . Known Exits Taken 27 | . . . 1 1 . . 1 1 1 1 1 . . 1 1 1 1 1 . . 1 1 1 1 1 . . 1 1 1 1 1 1 1 1 1 1 . Unknown Exits Taken 3 | 1 1 1 . . . . . . . . . . . . . . . . . . . . . . . . . . . . . . . . . . . . Scrap Searched 22 | . . . . . . . . 3 2 . 3 . . . 2 3 3 1 . . . . . . . . . . 4 1 . . . . . . . . Spaces Dug 407 | . 1 4 . 1 26 . 12 . 5 . 10 28 . 38 13 15 . 19 27 . 13 2 11 11 7 38 . 22 1 6 . 21 29 12 6 3 14 12 Terrain Destroyed 1252 | . 10 40 30 4 26 . 12 . 5 . 35 60 . 86 13 15 . 19 27 . 35 238 11 11 7 73 . 110 1 22 13 39 153 12 6 3 14 122 Melee 374 | . . 1 . 1 26 . 12 . 5 . 7 25 . 27 11 12 . 17 25 . 13 2 11 11 7 38 . 20 1 6 . 21 29 12 6 3 13 12 Projectile 31 | . 1 3 . 3 . . . . . . . 3 . 7 2 3 . 2 2 . . . . . . . . 3 . . . . . . . . 1 1 AOE 847 | . 9 36 30 . . . . . . . 28 32 . 52 . . . . . . 22 236 . . . 35 . 87 . 16 13 18 124 . . . . 109 Terrain Rammed . | . . . . . . . . . . . . . . . . . . . . . . . . . . . . . . . . . . . . . . . Walls Destroyed . | . . . . . . . . . . . . . . . . . . . . . . . . . . . . . . . . . . . . . . . Machines Disabled . | . . . . . . . . . . . . . . . . . . . . . . . . . . . . . . . . . . . . . . . Actions | -11 -10 -9 -9 -8 -7 -7 -7 -7 -7 -7 -6 -6 -6 -6 -6 -6 -6 -5 -5 -5 -5 -5 -5 -5 -5 -4 -4 -4 -4 -4 -4 -3 -3 -3 -2 -2 -1 -1 --------- Run | Yrd Mat Mat Min Mat Fac Was Fac Low Low Dat Pro Fac Was Fac Low Low Zio Pro Fac Was Fac Ext Cet Arc Hub Fac Was Fac Upp Upp War Pro Res Qua Res Tes Acc Com Total 44233 | 93 678 1212 147 1083 2910 102 1725 272 614 79 589 2915 89 3441 412 444 1269 508 1632 86 2051 2797 372 1371 1559 2774 134 2409 254 392 1341 842 2301 1351 1208 344 1100 1333 Wait 7255 | . 47 112 13 266 86 . 170 . 98 . 248 289 1 413 8 40 163 86 283 2 457 602 194 1306 483 412 2 231 31 11 282 107 158 278 64 3 89 220 Move 34712 | 75 547 923 120 636 2720 101 1531 272 506 79 317 2442 84 2811 386 383 1102 397 1260 83 1525 2025 160 54 1009 2211 132 2061 217 369 1030 708 2022 1017 1119 321 958 999 Hop 158 | . . . . . 17 1 4 . 1 . . 11 2 9 . . . . 3 1 13 1 . . 10 35 . 11 . . 1 1 8 12 . 3 2 12 Pick Up 146 | 2 15 24 1 20 2 . . . . . . 9 1 10 . . 2 . 5 . 6 5 . . 2 8 . 8 1 1 . . 6 5 6 2 4 1 Fast Attach 141 | 7 3 6 . 15 2 . 1 . 2 . 1 12 . 23 . . . . 10 . . 6 . . 2 7 . 9 . . 7 . 10 6 4 4 1 3 Attach 109 | . 2 5 . 12 4 . . . . . 2 3 . 14 2 3 . 2 4 . 4 6 . . 1 10 . 8 1 1 2 . 10 3 2 . 2 6 Detach 46 | . . . . . . . . . . . 2 1 . 10 2 3 . 2 3 . 1 2 . . . 2 . 4 . 1 2 . 6 2 . . . 3 Swap 161 | 1 7 20 3 12 . . . . 1 . 1 5 . 6 1 . . . 13 . 9 14 3 . 8 17 . 11 . 1 2 . 5 2 1 . 6 12 Drop 182 | . 2 26 2 30 12 . 1 . 1 . 1 13 1 17 . . 2 . 13 . 5 5 . . 2 6 . 9 . . 3 . 7 3 3 6 4 8 Fire 456 | 8 55 95 8 86 . . . . . . 4 14 . 25 2 3 . 4 5 . 3 68 1 . . 5 . 14 . 1 12 2 12 7 . . 1 21 Melee 697 | . . 1 . 2 62 . 18 . 5 . 13 62 . 85 11 12 . 17 33 . 28 28 14 11 15 54 . 36 4 7 . 24 57 16 9 5 20 48 Ram . | . . . . . . . . . . . . . . . . . . . . . . . . . . . . . . . . . . . . . . . Kick . | . . . . . . . . . . . . . . . . . . . . . . . . . . . . . . . . . . . . . . . Crush 4 | . . . . 4 . . . . . . . . . . . . . . . . . . . . . . . . . . . . . . . . . . Escape Stasis 140 | . . . . . . . . . . . . 54 . 18 . . . . . . . 23 . . 18 7 . 7 . . . . . . . . 13 . Rewire 17 | . . . . . 5 . . . . . . . . . . . . . . . . 12 . . . . . . . . . . . . . . . . Trap . | . . . . . . . . . . . . . . . . . . . . . . . . . . . . . . . . . . . . . . . Miscellaneous 9 | . . . . . . . . . . . . . . . . . . . . . . . . . 9 . . . . . . . . . . . . . Route ------- -11/Scrapyard -10/Materials (discovered 4 exits: *Mat x3 / [*Min]) -9/Materials (discovered 6 exits: *Mat x3 / [*Min x2] / [*Sto]) -9/Mines (discovered 2 exits: *Mat x2) -8/Materials (discovered 3 exits: *Fac x3) -7/Factory (discovered 6 exits: *Fac x4 / *Low x2) -7/Waste -7/Factory (discovered 4 exits: *Fac x2 / *Low x2) -7/Lower Caves -7/Lower Caves (discovered 2 exits: *Fac / *Dat) -7/Data Miner -6/Proximity Caves -6/Factory (discovered 5 exits: *Fac x3 / *Low x2) -6/Waste -6/Factory (discovered 6 exits: *Fac x4 / *Low x2) -6/Lower Caves -6/Lower Caves -6/Zion -5/Proximity Caves -5/Factory (discovered 4 exits: *Fac x2 / *Ext x2) -5/Waste -5/Factory (discovered 8 exits: *Fac x4 / Upp x2 / *Ext x2) -5/Extension (discovered 3 exits: *Fac x2 / *Cet) -5/Cetus (discovered 2 exits: Fac / *Arc) -5/Archives (discovered 3 exits: Fac / *Hub x2) -5/Hub_04(d) (discovered 4 exits: *Fac x4) -4/Factory (discovered 3 exits: *Res / *Upp x2) -4/Waste -4/Factory (discovered 5 exits: *Res x3 / *Upp x2) -4/Upper Caves -4/Upper Caves (discovered 2 exits: *Res / *War) -4/Warlord -3/Proximity Caves -3/Research (discovered 4 exits: *Res / Arm / *Qua x2) -3/Quarantine -2/Research (discovered 3 exits: Acc / *Tes x2) -2/Testing (discovered 2 exits: *Acc / Sec) -1/Access -1/Command Free Derelict Territories History --------- Turn | Location | Event 7 | -11/Scrapyard | Discovered new exit (range 13) 148 | -11/Scrapyard | Entered Materials 301 | -10/Materials | Build established: Mutant 444 | -10/Materials | Discovered new exit (range 3) 714 | -10/Materials | Discovered new exit (range 6) 792 | -10/Materials | Discovered new exit (range 11) 976 | -10/Materials | Discovered new exit (range 8) 1366 | -10/Materials | Entered another Materials area 1366 | -9/Materials | Evolved 2 slots: Propulsion x1, Weapon x1 1911 | -9/Materials | Build established: Scavenger-Tank 1954 | -9/Materials | Discovered new exit (range 8) 1990 | -9/Materials | Discovered new exit (range 16) 2606 | -9/Materials | Discovered new exit (range 10) 2827 | -9/Materials | Build established: Tank 3146 | -9/Materials | Discovered new exit (range 7) 3726 | -9/Materials | Identified exit to Materials 3766 | -9/Materials | First assault squad dispatched 3776 | -9/Materials | Learned Storage stockpile data 3875 | -9/Materials | Learned Materials stockpile data 3884 | -9/Materials | Learned location of 2 exits from Materials 3902 | -9/Materials | Learned Storage non-interactive machine intel 4028 | -9/Materials | Entered Mines 4062 | -9/Mines | Destroyed 7 combat bots 4110 | -9/Mines | Received a Rocket Launcher from a helpful Derelict 4379 | -9/Mines | Entered Materials 4379 | -8/Materials | Evolved 2 slots: Utility x2 4380 | -8/Materials | Identified exit to Factory 4456 | -8/Materials | Repaired Broken Seismic Detector 4754 | -8/Materials | Build established: Scavenger-Tank 4858 | -8/Materials | Repaired Lgt. Armor Plating 5294 | -8/Materials | Build established: Tank 5980 | -8/Materials | Learned Storage security intel 6042 | -8/Materials | Learned location of 1 exit from Storage 6170 | -8/Materials | Learned location of Extension (-5) 6190 | -8/Materials | Learned 4 Recycling zone layouts 6218 | -8/Materials | Learned 2 Storage zone layouts 6255 | -8/Materials | Learned 4 Recycling zone layouts 6302 | -8/Materials | Learned location of Zion (-6) 6320 | -8/Materials | Entered Factory 6320 | -7/Factory | Evolved 2 slots: Propulsion x1, Utility x1 6427 | -7/Factory | Discovered new exit (range 8) 6546 | -7/Factory | Discovered new exit (range 8) 6826 | -7/Factory | Build established: Hacker-Sprinter 7132 | -7/Factory | Discovered new exit (range 6) 7133 | -7/Factory | Identified exit to Factory 7202 | -7/Factory | Discovered exit to Factory (range 14) 7269 | -7/Factory | Identified exit to Lower Caves 7269 | -7/Factory | Learned location of 1 exit from Factory 7301 | -7/Factory | Learned location of Lower Caves (-7) 7321 | -7/Factory | Learned location of 2 exits from Lower Caves 7333 | -7/Factory | Learned location of 1 exit from Cetus 7334 | -7/Factory | Learned 2 Upper Caves zone layouts 7344 | -7/Factory | Learned location of Warlord (-4) 7363 | -7/Factory | Learned location of 2 exits from Archives 7367 | -7/Factory | Manually triggered Chute Trap 7367 | -7/Factory | Sucked down chute 7367 | -7/Factory | Entered Waste 7368 | -7/Waste | Met a frightened Derelict 7369 | -7/Waste | Spotted C-40 Crusher 7370 | -7/Waste | Spotted C-40 Crusher 7373 | -7/Waste | Spotted C-40 Crusher 7382 | -7/Waste | EMP discharged 7382 | -7/Waste | Spotted C-40 Crusher 7382 | -7/Waste | Spotted C-40 Crusher 7387 | -7/Waste | Discovered new exit (range 12) 7387 | -7/Waste | Spotted C-40 Crusher 7396 | -7/Waste | Identified exit to Factory 7397 | -7/Waste | Entered Factory 7571 | -7/Factory | Discovered exit to Lower Caves (range 12) 7664 | -7/Factory | Discovered exit to Lower Caves (range 6) 7739 | -7/Factory | Discovered exit to Factory (range 14) 7862 | -7/Factory | Learned 2 Upper Caves zone layouts 7915 | -7/Factory | Learned location of 2 exits from Factory 7979 | -7/Factory | Central database locked down 7989 | -7/Factory | Loaded intel: 76 trap records 8055 | -7/Factory | Entered Lower Caves 8056 | -7/Lower Caves | Encountered a Warlord checkpoint 8056 | -7/Lower Caves | Identified exit to Lower Caves 8114 | -7/Lower Caves | Learned Factory garrison access intel 8115 | -7/Lower Caves | Learned 4 Factory zone layouts 8115 | -7/Lower Caves | Spotted B-75 Beast 8132 | -7/Lower Caves | Entered another Lower Caves area 8133 | -7/Lower Caves | Identified exit to Data Miner 8133 | -7/Lower Caves | Learned Factory security intel 8293 | -7/Lower Caves | Encountered a Warlord checkpoint 8388 | -7/Lower Caves | Found Alien Artifact 8388 | -7/Lower Caves | Identified Core Expander 8388 | -7/Lower Caves | Installed Core Expander, added new Weapon slot 8394 | -7/Lower Caves | Entered Data Miner 8394 | -7/Data Miner | Discovered new exit (range 6) 8400 | -7/Data Miner | Met Data Miner 8405 | -7/Data Miner | Learned location of Section 7 (-2) 8405 | -7/Data Miner | Acquired the access code to Warlord's prototype stash 8410 | -7/Data Miner | Received God Mode back door access code from Data Miner 8416 | -7/Data Miner | Identified exit to Proximity Caves 8417 | -7/Data Miner | Entered Proximity Caves 8424 | -6/Proximity Caves | Attracted the attention of an 0b10 outpost 8474 | -6/Proximity Caves | Learned 4 Factory zone layouts 8474 | -6/Proximity Caves | Learned 4 Factory zone layouts 8537 | -6/Proximity Caves | Acquired the password to a Derelict Tinkerer's latest research 8566 | -6/Proximity Caves | Discovered exit to Factory (range 6) 8712 | -6/Proximity Caves | Received a Behemoth hack from an annoying Tinkerer 8808 | -6/Proximity Caves | Entered Factory 8808 | -6/Factory | Evolved 2 slots: Propulsion x1, Utility x1 8809 | -6/Factory | Identified exit to Lower Caves 8809 | -6/Factory | Identified exit to Factory 8812 | -6/Factory | Loaded intel: 4 garrison access locations 9214 | -6/Factory | Discovered exit to Factory (range 5) 9446 | -6/Factory | Repaired Greatsword 9694 | -6/Factory | Discovered exit to Lower Caves (range 5) 9871 | -6/Factory | Learned location of 2 exits from Archives 9910 | -6/Factory | Learned location of Lower Caves (-6) 9940 | -6/Factory | Learned 2 Upper Caves zone layouts 9962 | -6/Factory | Loaded intel: 211 machine locations 10068 | -6/Factory | Manually triggered Chute Trap 10068 | -6/Factory | Sucked down chute 10068 | -6/Factory | Entered Waste 10069 | -6/Waste | Met a frightened Derelict 10078 | -6/Waste | Spotted C-40 Crusher 10083 | -6/Waste | EMP discharged 10088 | -6/Waste | Spotted C-40 Crusher 10091 | -6/Waste | Discovered new exit (range 16) 10091 | -6/Waste | Spotted C-40 Crusher 10094 | -6/Waste | Spotted C-40 Crusher 10095 | -6/Waste | Identified exit to Factory 10095 | -6/Waste | Entered Factory 10166 | -6/Factory | Build established: Sprinter 10258 | -6/Factory | Lost 3 parts (3n) 10522 | -6/Factory | Lost 4 parts (1p2u1w) 10713 | -6/Factory | Discovered exit to Factory (range 7) 10829 | -6/Factory | Core integrity fell below 50% 11015 | -6/Factory | Discovered exit to Factory (range 14) 11030 | -6/Factory | Lost 3 parts (1n2u) 11269 | -6/Factory | Build established: Hacker-Sprinter 11405 | -6/Factory | Discovered exit to Factory (range 8) 11538 | -6/Factory | Repaired Cld. Cesium-ion Thruster 11579 | -6/Factory | Incoming investigation squad redirected 11855 | -6/Factory | Loaded intel: 4 garrison access locations 11886 | -6/Factory | Loaded intel: 91 trap records 11922 | -6/Factory | Learned Factory trap positions 11928 | -6/Factory | Learned 4 Factory zone layouts 11929 | -6/Factory | Learned location of 2 exits from Archives 11930 | -6/Factory | Learned 4 Extension zone layouts 11983 | -6/Factory | Entered Lower Caves 12124 | -6/Lower Caves | Discovered new exit (range 9) 12127 | -6/Lower Caves | Identified exit to Lower Caves 12132 | -6/Lower Caves | Entered another Lower Caves area 12138 | -6/Lower Caves | Learned Factory garrison access intel 12149 | -6/Lower Caves | Encountered a Warlord checkpoint 12314 | -6/Lower Caves | Discovered new exit (range 16) 12318 | -6/Lower Caves | Identified exit to Zion 12318 | -6/Lower Caves | Entered Zion 12327 | -6/Zion | Found CR-A16's Pointy Stick 12337 | -6/Zion | System corruption cleaned by Quarantine Array 12347 | -6/Zion | Discovered new exit (range 12) 12494 | -6/Zion | Learned 4 Factory zone layouts 12551 | -6/Zion | Gained Derelict followers 12578 | -6/Zion | Met Imprinter 12620 | -6/Zion | Identified exit to Proximity Caves 12782 | -6/Zion | Entered Proximity Caves 12782 | -5/Proximity Caves | Accompanied by 2 allies 12829 | -5/Proximity Caves | Spotted B-75 Beast 12842 | -5/Proximity Caves | Befriended a Behemoth using the annoying Tinkerer's hack 12944 | -5/Proximity Caves | Discovered exit to Factory (range 12) 13030 | -5/Proximity Caves | Entered Factory 13030 | -5/Factory | Accompanied by 1 ally 13030 | -5/Factory | Evolved 2 slots: Propulsion x1, Utility x1 13031 | -5/Factory | Identified exit to Extension 13032 | -5/Factory | Identified exit to Factory 13033 | -5/Factory | Loaded intel: 108 trap records 13034 | -5/Factory | Loaded intel: 4 garrison access locations 13330 | -5/Factory | Discovered exit to Extension (range 9) 13500 | -5/Factory | Fabricated Mni. Smartbomb Launcher? 13525 | -5/Factory | Discovered exit to Factory (range 13) 13693 | -5/Factory | Fabricated Impulse Thruster Array? 13750 | -5/Factory | Fabricated Exp. Utility Shielding (x1) 13776 | -5/Factory | Manually triggered Chute Trap 13776 | -5/Factory | Sucked down chute 13776 | -5/Factory | Entered Waste 13777 | -5/Waste | Met a frightened Derelict 13778 | -5/Waste | Spotted C-40 Crusher 13785 | -5/Waste | Spotted C-40 Crusher 13786 | -5/Waste | Spotted C-40 Crusher 13791 | -5/Waste | EMP discharged 13794 | -5/Waste | Spotted C-40 Crusher 13796 | -5/Waste | Spotted C-40 Crusher 13801 | -5/Waste | Discovered new exit (range 11) 13804 | -5/Waste | Identified exit to Factory 13804 | -5/Waste | Entered Factory 13817 | -5/Factory | Identified exit to Upper Caves 14084 | -5/Factory | Destroyed 9 combat bots 14103 | -5/Factory | Discovered exit to Factory (range 11) 14380 | -5/Factory | Discovered exit to Factory (range 12) 14427 | -5/Factory | Fabricated H-66 Slayer (x2) 14505 | -5/Factory | Fabricated Cld. Cesium-ion Thruster (x1) 14561 | -5/Factory | Learned location of 1 exit from Proximity Caves 14609 | -5/Factory | Learned location of 1 exit from Extension 14648 | -5/Factory | Learned Testing stockpile data 14675 | -5/Factory | Learned Armory security intel 14763 | -5/Factory | Learned 2 Upper Caves zone layouts 14823 | -5/Factory | Entered Extension 14826 | -5/Extension | Identified exit to Cetus 15334 | -5/Extension | Rescued a captive Derelict 15337 | -5/Extension | Rescued a captive Derelict 15340 | -5/Extension | Rescued a captive Derelict 15373 | -5/Extension | Rescued a captive Derelict 15544 | -5/Extension | Spotted B-75 Beast 15546 | -5/Extension | Befriended a Behemoth using the annoying Tinkerer's hack 15548 | -5/Extension | Spotted B-75 Beast 15609 | -5/Extension | Allies destroyed B-75 Beast 15639 | -5/Extension | Lost 3 parts (1p1n1w) 15642 | -5/Extension | Lost 4 allies 15803 | -5/Extension | Rescued A7 16048 | -5/Extension | Disrupted transfer network 16066 | -5/Extension | Rescued a captive Derelict 16066 | -5/Extension | Rescued a captive Derelict 16098 | -5/Extension | Rescued a captive Derelict 16114 | -5/Extension | Rescued a captive Derelict 16375 | -5/Extension | Entered Cetus 16375 | -5/Cetus | Accompanied by 23 allies (A7) 16380 | -5/Cetus | Acquired a Cetus Manufacturing Module code from A7 16381 | -5/Cetus | Spotted Cetus Guard 16393 | -5/Cetus | Spotted Cetus Guard 16395 | -5/Cetus | Spotted Cetus Guard 16398 | -5/Cetus | Build established: Commander-Sprinter 16401 | -5/Cetus | Allies destroyed Cetus Guard 16402 | -5/Cetus | Allies destroyed Cetus Guard 16404 | -5/Cetus | Allies destroyed Cetus Guard 16427 | -5/Cetus | Started Cetus Manufacturing Module 16430 | -5/Cetus | Lost 4 allies 16451 | -5/Cetus | Escorted A7 to Cetus Mainframe 16452 | -5/Cetus | Manufactured an Enhanced Grunt 16477 | -5/Cetus | Manufactured an Enhanced Grunt 16502 | -5/Cetus | Manufactured an Enhanced Grunt 16527 | -5/Cetus | Manufactured an Enhanced Grunt 16552 | -5/Cetus | Manufactured an Enhanced Grunt 16571 | -5/Cetus | Discovered new exit (range 16) 16575 | -5/Cetus | Identified exit to Archives 16658 | -5/Cetus | Entered Archives 16658 | -5/Archives | Accompanied by 25 allies (A7) 16659 | -5/Archives | Identified exit to Hub_04(d) 16663 | -5/Archives | Received a hacking code to weaken MAIN.C 16728 | -5/Archives | Lost 5 allies 18008 | -5/Archives | Entered Hub_04(d) 18008 | -5/Hub_04(d) | Accompanied by 19 allies 18495 | -5/Hub_04(d) | Network Hub disabled 18527 | -5/Hub_04(d) | Network Hub disabled 18655 | -5/Hub_04(d) | Network Hub disabled 18806 | -5/Hub_04(d) | Build established: Hacker-Sprinter 18858 | -5/Hub_04(d) | Network Hub disabled 18862 | -5/Hub_04(d) | Spotted Lightning 18863 | -5/Hub_04(d) | Spotted Lightning 18863 | -5/Hub_04(d) | Spotted Lightning 18886 | -5/Hub_04(d) | Entered Factory 18886 | -4/Factory | Evolved 2 slots: Propulsion x1, Utility x1 18954 | -4/Factory | Repaired Phasing Sabre 19079 | -4/Factory | Repaired Mni. Smartbomb Launcher 19203 | -4/Factory | Discovered new exit (range 15) 19732 | -4/Factory | Fabricated Cld. Field Propulsion Drive (x1) 19775 | -4/Factory | Fabricated Exp. Utility Shielding? 19829 | -4/Factory | Fabricated Cld. Field Propulsion Drive (x1) 20080 | -4/Factory | Central database locked down 20089 | -4/Factory | Identified exit to Upper Caves 20109 | -4/Factory | Spotted B-86 Titan 20110 | -4/Factory | Discovered new exit (range 9) 20113 | -4/Factory | Identified exit to Research 20116 | -4/Factory | Manually triggered Chute Trap 20116 | -4/Factory | Sucked down chute 20116 | -4/Factory | Entered Waste 20126 | -4/Waste | Spotted C-40 Crusher 20131 | -4/Waste | EMP discharged 20131 | -4/Waste | System corruption reached 10% 20139 | -4/Waste | Spotted C-40 Crusher 20139 | -4/Waste | Spotted C-40 Crusher 20142 | -4/Waste | Spotted C-40 Crusher 20148 | -4/Waste | Spotted C-40 Crusher 20150 | -4/Waste | Spotted C-40 Crusher 20154 | -4/Waste | Discovered new exit (range 10) 20156 | -4/Waste | Identified exit to Factory 20157 | -4/Waste | Entered Factory 20281 | -4/Factory | Repaired Field Propulsion Array 20320 | -4/Factory | Discovered exit to Research (range 4) 20341 | -4/Factory | Spotted B-86 Titan 20416 | -4/Factory | Lost 3 parts (1p2w) 20477 | -4/Factory | Discovered exit to Research (range 9) 20542 | -4/Factory | Spotted B-86 Titan 20649 | -4/Factory | Discovered exit to Research (range 10) 20852 | -4/Factory | Found Prototype Processor 21152 | -4/Factory | Entered Upper Caves 21153 | -4/Upper Caves | Encountered a Warlord checkpoint 21153 | -4/Upper Caves | Identified exit to Upper Caves 21257 | -4/Upper Caves | Entered another Upper Caves area 21394 | -4/Upper Caves | Discovered new exit (range 12) 21397 | -4/Upper Caves | Identified exit to Warlord 21397 | -4/Upper Caves | Entered Warlord 21409 | -4/Warlord | System corruption cleaned by Quarantine Array 21431 | -4/Warlord | Lost 3 parts (1n2u) 21437 | -4/Warlord | Received a Watcher feed algorithm from an ecstatic Tinkerer 21454 | -4/Warlord | Identified Exp. Melee Analysis Suite 21548 | -4/Warlord | Opened Warlord's prototype stash 21554 | -4/Warlord | Found Prototype Hackware 21554 | -4/Warlord | Identified System Mapper 21556 | -4/Warlord | Found Prototype Device 21556 | -4/Warlord | Identified Exp. Focal Shield 21586 | -4/Warlord | Visited the Vortex Lab 21589 | -4/Warlord | Warlord's base attacked by MAIN.C 21597 | -4/Warlord | Found Prototype Energy Cannon 21597 | -4/Warlord | Identified Vortex Driver 21612 | -4/Warlord | Found Prototype Energy Gun 21612 | -4/Warlord | Identified Vortex Shotgun 21646 | -4/Warlord | Met Warlord 21937 | -4/Warlord | Spotted Striker 21939 | -4/Warlord | Warlord forces counterattacked 21942 | -4/Warlord | Spotted B-90 Cyclops 21947 | -4/Warlord | P-70 Sage assimilated allied BS-31I(B) 21947 | -4/Warlord | Spotted BS-31I(B) 21973 | -4/Warlord | Opened side exit 21986 | -4/Warlord | Discovered new exit (range 8) 21988 | -4/Warlord | Identified exit to Proximity Caves 21988 | -4/Warlord | Entered Proximity Caves 21990 | -3/Proximity Caves | Lost 14 allies 21992 | -3/Proximity Caves | Spotter reported a threat 21992 | -3/Proximity Caves | Spotter reported a threat 22142 | -3/Proximity Caves | Attracted the attention of an 0b10 checkpoint 22337 | -3/Proximity Caves | Entered Research 22337 | -3/Research | Evolved 2 slots: Power x1, Utility x1 22377 | -3/Research | Discovered new exit (range 7) 22385 | -3/Research | Identified exit to Research 22823 | -3/Research | Identified exit to Armory 22823 | -3/Research | Identified exit to Quarantine 22837 | -3/Research | Search patrols dispatched 22926 | -3/Research | Spotted B-86 Titan 23048 | -3/Research | Fabricated Impulse Thruster Array (x1) 23082 | -3/Research | Fabricated Exp. Hacking Suite? 23084 | -3/Research | System corruption reached 10% 23087 | -3/Research | Search patrols dispatched 23120 | -3/Research | Lost 3 parts (1n1u1w) 23143 | -3/Research | Fabricated Exp. Utility Shielding (x1) 23170 | -3/Research | Fabricated Exp. Propulsion Shielding (x1) 23220 | -3/Research | Entered Quarantine 23271 | -3/Quarantine | Discovered exit to Research (range 12) 23420 | -3/Quarantine | Found Alien Slashing Weapon 23420 | -3/Quarantine | Identified Sigix Broadsword 23443 | -3/Quarantine | Build established: Wizard-Sprinter 23545 | -3/Quarantine | Central database locked down 23618 | -3/Quarantine | Repaired Mni. Smartbomb Launcher 23718 | -3/Quarantine | Learned Access non-interactive machine intel 23783 | -3/Quarantine | Learned location of 1 exit from Testing 23862 | -3/Quarantine | Entered Research 23862 | -2/Research | Warlord forces began assault on 0b10 23862 | -2/Research | Evolved 2 slots: Propulsion x1, Utility x1 23909 | -2/Research | Identified exit to Testing 23909 | -2/Research | Discovered new exit (range 15) 23925 | -2/Research | Spotted B-90 Cyclops 23949 | -2/Research | Met up with Warlord 23972 | -2/Research | Research machine network offline 24144 | -2/Research | Borebot progress halted 24172 | -2/Research | Spotted Striker 24199 | -2/Research | Found Exp. Signal Interpreter 24238 | -2/Research | Entered Testing 24239 | -2/Testing | Identified exit to Section 7 24265 | -2/Testing | Found Prototype Device 24265 | -2/Testing | Identified 2N-1CE's Frost Array 24290 | -2/Testing | Found Prototype Energy Gun 24290 | -2/Testing | Identified Tachyon Dispersion Ray 24323 | -2/Testing | Identified exit to Access 24339 | -2/Testing | Entered Access 24339 | -1/Access | Evolved 2 slots: Utility x2 24340 | -1/Access | Loaded intel: 72 non-interactive machine locations 24513 | -1/Access | Identified exit to Command 24621 | -1/Access | Fabricated Femtoactuators? 24715 | -1/Access | Entered Command 24731 | -1/Command | Phase Generator disabled 24758 | -1/Command | Ran a Watcher feed algorithm 24798 | -1/Command | Disengaged cave seal 24805 | -1/Command | Welcomed Warlord to Command 24844 | -1/Command | Spotted ND-P4P(K) 24874 | -1/Command | Disengaged cave seal 24883 | -1/Command | Lost 3 allies 24920 | -1/Command | Spotted M0-RZV(L) 24952 | -1/Command | Spotted M Guard 24952 | -1/Command | Spotted M Guard 24952 | -1/Command | Spotted Combat Programmer 24952 | -1/Command | Spotted Combat Programmer 24998 | -1/Command | Destroyed Combat Programmer 25008 | -1/Command | Destroyed Combat Programmer 25030 | -1/Command | All MAIN.C guards destroyed 25051 | -1/Command | Lost 7 allies 25072 | -1/Command | Warlord commented on Warlord statues 25226 | -1/Command | Met MAIN.C 25227 | -1/Command | 0b10 Conduit disabled 25228 | -1/Command | Hacked MAIN.C using A7's code 25259 | -1/Command | Build established: Hacker-Sprinter 25287 | -1/Command | MAIN.C activated Command garrisons 25306 | -1/Command | Lost 6 allies 25323 | *** | Establishing Free Derelict Territories! Last Messages --------------- 25312_ MAIN.C reaction time slowed by virus. 25314_ System corrupted: Substantial component data lost. 25314_ MAIN.C reaction time slowed by virus. 25315_ Blast Slug penetrates MAIN.C. 25315_ Blast Slug penetrates MJ-Q9B(i). 25315_ MJ-Q9B(i) knocked back. 25315_ Blast Slug penetrates 0b10 Conduit. 25318_ MAIN.C reaction time slowed by virus. 25321_ OS-9FT(i) knocked back. 25322_ Centrium Medium Armor Plating destroyed. 25322_ Knocked back. 25323_ MAIN.C suffers critical hit (Burn). 25323_ MAIN.C: "I hope you know you're still going to DIE HERE WITH ME!" Heavy Barrier opened. 25323_ MAIN.C destroyed. 25323_ Blast Slug penetrates 0b10 Conduit. ZY-L1N: Victory! Sure there's still lots to do, but without MAIN.C at the helm 0b10 doesn't stand a chance. We've got this... Map ----- +----------------------------------------------------+ | ?????????????????????????????????????????????????? | | ?????????????????????????????????????????????????? | | ?????????????????????????????????????????????????? | | ?????????????????????????????????????????????????? | | ?????????????????????????????????????????????????? | | ?????????????????????????????????????????????????? | | ?????????????????????????????????????????????????? | | ??????????????????????################???????????? | | ????????????????????""" """" #???????????? | | ???????????????????? "" #???????????? | | ????????????????????" "" ==############# | | ????????????????????""""""" *[%/% | | ????????????????????? """ [ */= | | ????????????????"" """""" = /% | | ?????????????????" """""" =*############# | | ???????????????? " """"" #???????????? | | ???????????????# " " % #???????????? | | ???????????????# " " % % ""#???????????? | | ???????????????#"""""""" W g %""""#???????????? | | ???????????????#"" %si """"""#???????????? | | ???????????????# ii"""""""""#???????????? | | ???????????????# ii" " " #???????????? | | ???????????##### " " " #???????????? | | ?????????? " """" " #???????????? | | ?????????? "%" """" #???????????? | | ?????????? @" " " ????????????? | | ???????????????# " """" " ????????????? | | ???????????????# " " " """"""""????????????? | | ???????????????# %""" " " " ?????????????? | | ????????????????##################???????????????? | | ?????????????????????????????????????????????????? | | ?????????????????????????????????????????????????? | | ?????????????????????????????????????????????????? | | ?????????????????????????????????????????????????? | | ?????????????????????????????????????????????????? | | ?????????????????????????????????????????????????? | | ?????????????????????????????????????????????????? | | ?????????????????????????????????????????????????? | | ?????????????????????????????????????????????????? | | ?????????????????????????????????????????????????? | | ?????????????????????????????????????????????????? | | ?????????????????????????????????????????????????? | | ?????????????????????????????????????????????????? | | ?????????????????????????????????????????????????? | | ?????????????????????????????????????????????????? | | ?????????????????????????????????????????????????? | | ?????????????????????????????????????????????????? | | ?????????????????????????????????????????????????? | | ?????????????????????????????????????????????????? | | ?????????????????????????????????????????????????? | +----------------------------------------------------+ Best States ------------- Heat Dissipation 152 Energy Generation 35 Energy Capacity 915 Matter Stores 300 Matter Capacity 300 Sight Range 16 Robot Scan Range 18 Terrain Scan Density 10 ECM Strength 1 Armor Coverage 300 Power Shielding 66 Propulsion Shielding 90 Utility Shielding 90 Melee Speed Boost 50 Evasion (%) 78 Melee Accuracy 16 Recoil Reduction 3 Offensive Hacking 61 Defensive Hacking 23 Authchip Count 3 Item Schematics ----------------- Adv. Sensor Array | -7/Factory | Hacked Mic. Nuclear Core | -7/Factory | Hacked Railgun | -7/Factory | Downloaded Cld. VTOL Module | -7/Factory | Hacked Combat Drone Bay | -7/Data Miner | Free Lgt. Regenerative Plating | -7/Data Miner | Free Cld. Cesium-ion Thruster | -7/Data Miner | Free Gravity Neutralizer | -7/Data Miner | Free Arm. Medium Treads | -7/Data Miner | Free Antimatter Cannon | -7/Data Miner | Free Imp. Dynamic Insulation System | -7/Data Miner | Free Disruptor Cannon | -7/Data Miner | Free Exp. Utility Shielding | -6/Factory | Hacked Flamer | -6/Zion | Free Beamcaster | -6/Zion | Free Nuclear Pulse Array | -5/Factory | Hacked Mni. Smartbomb Launcher | -5/Factory | Hacked Impulse Thruster Array | -5/Factory | Hacked Exp. Propulsion Shielding | -5/Factory | Hacked Imp. System Restoration Module | -5/Factory | Hacked Hyp. Railgun | -5/Factory | Hacked Mic. Antimatter Reactor | -5/Factory | Hacked Linear Accelerator | -5/Factory | Hacked Cld. Nuclear Pulse Thruster | -5/Factory | Hacked Force Lance | -5/Extension | Hacked Com. HERF Cannon | -5/Hub_04(d) | Hacked Adv. Hacking Suite | -4/Factory | Hacked Imp. Phase Shifter | -4/Factory | Hacked Cld. Field Propulsion Drive | -4/Factory | Hacked Micro-nuke Launcher | -4/Factory | Hacked Enh. Nova Cannon | -4/Factory | Hacked Enh. Force Lance | -4/Factory | Hacked Adv. Cloaking Device | -3/Research | Hacked Exp. Hacking Suite | -3/Research | Hacked Exp. Melee Analysis Suite | -3/Research | Hacked Biometal Heavy Treads | -3/Quarantine | Hacked Cld. Impulse Thruster | -3/Quarantine | Hacked Adv. Heavy Siege Treads | -2/Research | Hacked Nanosword | -2/Research | Hacked Exp. Actuator Array | -2/Testing | Hacked Femtoactuators | -1/Access | Hacked Robot Schematics ------------------ M-28 Smith | -7/Factory | Hacked R-10 Processor | -7/Data Miner | Free S-27 Virus | -7/Data Miner | Free A-15 Conveyor | -7/Data Miner | Free M-22 Extractor | -7/Data Miner | Free B-48 Gladiator | -7/Data Miner | Free G-50 Soldier | -7/Data Miner | Free H-66 Slayer | -4/Factory | Hacked Fabricated ------------ Mni. Smartbomb Launcher | x1 | -5/Factory | Authchip Impulse Thruster Array | x1 | -5/Factory | Authchip Exp. Utility Shielding | x1 | -5/Factory | Authchip H-66 Slayer | x2 | -5/Factory | Preloaded Cld. Cesium-ion Thruster | x1 | -5/Factory | Authchip Cld. Field Propulsion Drive | x1 | -4/Factory | Authchip Exp. Utility Shielding | x1 | -4/Factory | Authchip Cld. Field Propulsion Drive | x1 | -4/Factory | Authchip Impulse Thruster Array | x1 | -3/Research | Authchip Exp. Hacking Suite | x1 | -3/Research | Authchip Exp. Utility Shielding | x1 | -3/Research | Authchip Exp. Propulsion Shielding | x1 | -3/Research Femtoactuators | x1 | -1/Access Repaired ---------- Seismic Detector | 35% | -8/Materials | Broken Lgt. Armor Plating | 12% | -8/Materials Greatsword | 32% | -6/Factory Cld. Cesium-ion Thruster | 15% | -6/Factory Phasing Sabre | 9% | -4/Factory Mni. Smartbomb Launcher | 56% | -4/Factory Field Propulsion Array | 4% | -4/Factory Mni. Smartbomb Launcher | 10% | -3/Quarantine Alien Tech Used ----------------- Core Expander Sigix Broadsword Achievements -------------- 404 Poison In The Code Challenges ------------ None Game ------ Seed GodTacticalDoublenader Manual? 0 Play Time 08:06:38 Cumulative 393.5 hours Start 2025.10.06 @ 06:42:09 End 2025.10.17 @ 19:54:18 Sessions 25 Manual Loads 0 Difficulty Rogue Special Mode None Game No. 148 Rogue 127 Adventurer 21 Explorer 0 Win Type 7 Total 18 Types 11/1/4/1/0/0/0/1/0/0 Lore% 56 Gallery% 72 Achievement% 70 Wizard Run 0 Options --------- Layout 1 ASCII 0 Keyboard 0 Movement Mouse Keybinds 0 Fullscreen 2 Font 32/SmallcapsGlow Map View 77x35 Zoom Use 0% Tactical HUD 1 Map Filters NONE Filters NONE Steam 1 RUN: 1682e4db-3afb-4df6-863a-3e91476a2e9c